Workbook

Sheet display

Sheet Quest
A1: 255 | B1: 0 | C1: 48 | D1: 49 | E1: 50 | F1: 51 | G1: 52 | H1: 53 | I1: 54 | J1: 55 | K1: 56 | L1: 57 | M1: 65 | N1: 66 | O1: 67 | P1: 68 | Q1: 69 | R1: 70 | S1: 0 | T1: 0 | U1: 0 | V1: 0 | W1: 0 | X1: 0 | Y1: 0 | Z1: 0 | AA1: 0 | AB1: 0 | AC1: 0 | AD1: 0 | AE1: 0 | AF1: 0 | AH1: QuestChr | AK1: 255 | AL1: 0 | AM1: 48 | AN1: 49 | AO1: 50 | AP1: 51 | AQ1: 52 | AR1: 53 | AS1: 54 | AT1: 55 | AU1: 56 | AV1: 57 | AW1: 65 | AX1: 66 | AY1: 67 | AZ1: 68 | BA1: 69 | BB1: 70 | BC1: 0 | BD1: 0 | BE1: 0 | BF1: 0 | BG1: 0 | BH1: 0 | BI1: 0 | BJ1: 0 | BK1: 0 | BL1: 0 | BM1: 0 | BN1: 0 | BO1: 0 | BP1: 0
A2: 0 | B2: 0 | C2: 0 | D2: 0 | E2: 0 | F2: 0 | G2: 0 | H2: 0 | I2: 0 | J2: 0 | K2: 0 | L2: 0 | M2: 0 | N2: 0 | O2: 0 | P2: 0 | Q2: 0 | R2: 0 | S2: 0 | T2: 0 | U2: 0 | V2: 0 | W2: 0 | X2: 0 | Y2: 0 | Z2: 0 | AA2: 0 | AB2: 0 | AC2: 0 | AD2: 0 | AE2: 0 | AF2: 0 | AK2: 0 | AL2: 0 | AM2: 0 | AN2: 0 | AO2: 0 | AP2: 0 | AQ2: 0 | AR2: 0 | AS2: 0 | AT2: 0 | AU2: 0 | AV2: 0 | AW2: 0 | AX2: 0 | AY2: 0 | AZ2: 0 | BA2: 0 | BB2: 0 | BC2: 0 | BD2: 0 | BE2: 0 | BF2: 0 | BG2: 0 | BH2: 0 | BI2: 0 | BJ2: 0 | BK2: 0 | BL2: 0 | BM2: 0 | BN2: 0 | BO2: 0 | BP2: 0
A3: 48 | B3: 0 | C3: 0 | D3: 1 | E3: 2 | F3: 3 | G3: 4 | H3: 5 | I3: 6 | J3: 7 | K3: 8 | L3: 9 | M3: 10 | N3: 11 | O3: 12 | P3: 13 | Q3: 14 | R3: 15 | S3: 0 | T3: 0 | U3: 0 | V3: 0 | W3: 0 | X3: 0 | Y3: 0 | Z3: 0 | AA3: 0 | AB3: 0 | AC3: 0 | AD3: 0 | AE3: 0 | AF3: 0 | AK3: 48 | AL3: 0 | AM3: 0 | AN3: 1 | AO3: 2 | AP3: 3 | AQ3: 4 | AR3: 5 | AS3: 6 | AT3: 7 | AU3: 8 | AV3: 9 | AW3: 10 | AX3: 11 | AY3: 12 | AZ3: 13 | BA3: 14 | BB3: 15 | BC3: 0 | BD3: 0 | BE3: 0 | BF3: 0 | BG3: 0 | BH3: 0 | BI3: 0 | BJ3: 0 | BK3: 0 | BL3: 0 | BM3: 0 | BN3: 0 | BO3: 0 | BP3: 0
A4: 49 | B4: 0 | C4: 16 | D4: 17 | E4: 18 | F4: 19 | G4: 20 | H4: 21 | I4: 22 | J4: 23 | K4: 24 | L4: 25 | M4: 26 | N4: 27 | O4: 28 | P4: 29 | Q4: 30 | R4: 31 | S4: 0 | T4: 0 | U4: 0 | V4: 0 | W4: 0 | X4: 0 | Y4: 0 | Z4: 0 | AA4: 0 | AB4: 0 | AC4: 0 | AD4: 0 | AE4: 0 | AF4: 0 | AK4: 49 | AL4: 0 | AM4: 16 | AN4: 17 | AO4: 18 | AP4: 19 | AQ4: 20 | AR4: 21 | AS4: 22 | AT4: 23 | AU4: 24 | AV4: 25 | AW4: 26 | AX4: 27 | AY4: 28 | AZ4: 29 | BA4: 30 | BB4: 31 | BC4: 0 | BD4: 0 | BE4: 0 | BF4: 0 | BG4: 0 | BH4: 0 | BI4: 0 | BJ4: 0 | BK4: 0 | BL4: 0 | BM4: 0 | BN4: 0 | BO4: 0 | BP4: 0
A5: 50 | B5: 0 | C5: 32 | D5: 33 | E5: 34 | F5: 35 | G5: 36 | H5: 37 | I5: 38 | J5: 39 | K5: 40 | L5: 41 | M5: 42 | N5: 43 | O5: 44 | P5: 45 | Q5: 46 | R5: 47 | S5: 0 | T5: 0 | U5: 0 | V5: 0 | W5: 0 | X5: 0 | Y5: 0 | Z5: 0 | AA5: 0 | AB5: 0 | AC5: 0 | AD5: 0 | AE5: 0 | AF5: 0 | AK5: 50 | AL5: 0 | AM5: 32 | AN5: 33 | AO5: 34 | AP5: 35 | AQ5: 36 | AR5: 37 | AS5: 38 | AT5: 39 | AU5: 40 | AV5: 41 | AW5: 42 | AX5: 43 | AY5: 44 | AZ5: 45 | BA5: 46 | BB5: 47 | BC5: 0 | BD5: 0 | BE5: 0 | BF5: 0 | BG5: 0 | BH5: 0 | BI5: 0 | BJ5: 0 | BK5: 0 | BL5: 0 | BM5: 0 | BN5: 0 | BO5: 0 | BP5: 0
A6: 51 | B6: 0 | C6: 48 | D6: 49 | E6: 50 | F6: 51 | G6: 52 | H6: 53 | I6: 54 | J6: 55 | K6: 56 | L6: 57 | M6: 58 | N6: 59 | O6: 60 | P6: 61 | Q6: 62 | R6: 63 | S6: 0 | T6: 0 | U6: 0 | V6: 0 | W6: 0 | X6: 0 | Y6: 0 | Z6: 0 | AA6: 0 | AB6: 0 | AC6: 0 | AD6: 0 | AE6: 0 | AF6: 0 | AK6: 51 | AL6: 0 | AM6: 48 | AN6: 49 | AO6: 50 | AP6: 51 | AQ6: 52 | AR6: 53 | AS6: 54 | AT6: 55 | AU6: 56 | AV6: 57 | AW6: 58 | AX6: 59 | AY6: 60 | AZ6: 61 | BA6: 62 | BB6: 63 | BC6: 0 | BD6: 0 | BE6: 0 | BF6: 0 | BG6: 0 | BH6: 0 | BI6: 0 | BJ6: 0 | BK6: 0 | BL6: 0 | BM6: 0 | BN6: 0 | BO6: 0 | BP6: 0
A7: 52 | B7: 0 | C7: 64 | D7: 65 | E7: 66 | F7: 67 | G7: 68 | H7: 69 | I7: 70 | J7: 71 | K7: 72 | L7: 73 | M7: 74 | N7: 75 | O7: 76 | P7: 77 | Q7: 78 | R7: 79 | S7: 0 | T7: 0 | U7: 0 | V7: 0 | W7: 0 | X7: 0 | Y7: 0 | Z7: 0 | AA7: 0 | AB7: 0 | AC7: 0 | AD7: 0 | AE7: 0 | AF7: 0 | AK7: 52 | AL7: 0 | AM7: 64 | AN7: 65 | AO7: 66 | AP7: 67 | AQ7: 68 | AR7: 69 | AS7: 70 | AT7: 71 | AU7: 72 | AV7: 73 | AW7: 74 | AX7: 75 | AY7: 76 | AZ7: 77 | BA7: 78 | BB7: 79 | BC7: 0 | BD7: 0 | BE7: 0 | BF7: 0 | BG7: 0 | BH7: 0 | BI7: 0 | BJ7: 0 | BK7: 0 | BL7: 0 | BM7: 0 | BN7: 0 | BO7: 0 | BP7: 0
A8: 53 | B8: 0 | C8: 80 | D8: 81 | E8: 82 | F8: 83 | G8: 84 | H8: 85 | I8: 86 | J8: 87 | K8: 88 | L8: 89 | M8: 90 | N8: 91 | O8: 92 | P8: 93 | Q8: 94 | R8: 95 | S8: 0 | T8: 0 | U8: 0 | V8: 0 | W8: 0 | X8: 0 | Y8: 0 | Z8: 0 | AA8: 0 | AB8: 0 | AC8: 0 | AD8: 0 | AE8: 0 | AF8: 0 | AK8: 53 | AL8: 0 | AM8: 80 | AN8: 81 | AO8: 82 | AP8: 83 | AQ8: 84 | AR8: 85 | AS8: 86 | AT8: 87 | AU8: 88 | AV8: 89 | AW8: 90 | AX8: 91 | AY8: 92 | AZ8: 93 | BA8: 94 | BB8: 95 | BC8: 0 | BD8: 0 | BE8: 0 | BF8: 0 | BG8: 0 | BH8: 0 | BI8: 0 | BJ8: 0 | BK8: 0 | BL8: 0 | BM8: 0 | BN8: 0 | BO8: 0 | BP8: 0
A9: 54 | B9: 0 | C9: 96 | D9: 97 | E9: 98 | F9: 99 | G9: 100 | H9: 101 | I9: 102 | J9: 103 | K9: 104 | L9: 105 | M9: 106 | N9: 107 | O9: 108 | P9: 109 | Q9: 110 | R9: 111 | S9: 0 | T9: 0 | U9: 0 | V9: 0 | W9: 0 | X9: 0 | Y9: 0 | Z9: 0 | AA9: 0 | AB9: 0 | AC9: 0 | AD9: 0 | AE9: 0 | AF9: 0 | AK9: 54 | AL9: 0 | AM9: 96 | AN9: 97 | AO9: 98 | AP9: 99 | AQ9: 100 | AR9: 101 | AS9: 102 | AT9: 103 | AU9: 104 | AV9: 105 | AW9: 106 | AX9: 107 | AY9: 108 | AZ9: 109 | BA9: 110 | BB9: 111 | BC9: 0 | BD9: 0 | BE9: 0 | BF9: 0 | BG9: 0 | BH9: 0 | BI9: 0 | BJ9: 0 | BK9: 0 | BL9: 0 | BM9: 0 | BN9: 0 | BO9: 0 | BP9: 0
A10: 55 | B10: 0 | C10: 112 | D10: 113 | E10: 114 | F10: 115 | G10: 116 | H10: 117 | I10: 118 | J10: 119 | K10: 120 | L10: 121 | M10: 122 | N10: 123 | O10: 124 | P10: 125 | Q10: 126 | R10: 127 | S10: 0 | T10: 0 | U10: 0 | V10: 0 | W10: 0 | X10: 0 | Y10: 0 | Z10: 0 | AA10: 0 | AB10: 0 | AC10: 0 | AD10: 0 | AE10: 0 | AF10: 0 | AK10: 55 | AL10: 0 | AM10: 112 | AN10: 113 | AO10: 114 | AP10: 115 | AQ10: 116 | AR10: 117 | AS10: 118 | AT10: 119 | AU10: 120 | AV10: 121 | AW10: 122 | AX10: 123 | AY10: 124 | AZ10: 125 | BA10: 126 | BB10: 127 | BC10: 0 | BD10: 0 | BE10: 0 | BF10: 0 | BG10: 0 | BH10: 0 | BI10: 0 | BJ10: 0 | BK10: 0 | BL10: 0 | BM10: 0 | BN10: 0 | BO10: 0 | BP10: 0
A11: 56 | B11: 0 | C11: 128 | D11: 129 | E11: 130 | F11: 131 | G11: 132 | H11: 133 | I11: 134 | J11: 135 | K11: 136 | L11: 137 | M11: 138 | N11: 139 | O11: 140 | P11: 141 | Q11: 142 | R11: 143 | S11: 0 | T11: 0 | U11: 0 | V11: 0 | W11: 0 | X11: 0 | Y11: 0 | Z11: 0 | AA11: 0 | AB11: 0 | AC11: 0 | AD11: 0 | AE11: 0 | AF11: 0 | AK11: 56 | AL11: 0 | AM11: 128 | AN11: 129 | AO11: 130 | AP11: 131 | AQ11: 132 | AR11: 133 | AS11: 134 | AT11: 135 | AU11: 136 | AV11: 137 | AW11: 138 | AX11: 139 | AY11: 140 | AZ11: 141 | BA11: 142 | BB11: 143 | BC11: 0 | BD11: 0 | BE11: 0 | BF11: 0 | BG11: 0 | BH11: 0 | BI11: 0 | BJ11: 0 | BK11: 0 | BL11: 0 | BM11: 0 | BN11: 0 | BO11: 0 | BP11: 0
A12: 57 | B12: 0 | C12: 144 | D12: 145 | E12: 146 | F12: 147 | G12: 148 | H12: 149 | I12: 150 | J12: 151 | K12: 152 | L12: 153 | M12: 154 | N12: 155 | O12: 156 | P12: 157 | Q12: 158 | R12: 159 | S12: 0 | T12: 0 | U12: 0 | V12: 0 | W12: 0 | X12: 0 | Y12: 0 | Z12: 0 | AA12: 0 | AB12: 0 | AC12: 0 | AD12: 0 | AE12: 0 | AF12: 0 | AK12: 57 | AL12: 0 | AM12: 144 | AN12: 145 | AO12: 146 | AP12: 147 | AQ12: 148 | AR12: 149 | AS12: 150 | AT12: 151 | AU12: 152 | AV12: 153 | AW12: 154 | AX12: 155 | AY12: 156 | AZ12: 157 | BA12: 158 | BB12: 159 | BC12: 0 | BD12: 0 | BE12: 0 | BF12: 0 | BG12: 0 | BH12: 0 | BI12: 0 | BJ12: 0 | BK12: 0 | BL12: 0 | BM12: 0 | BN12: 0 | BO12: 0 | BP12: 0
A13: 65 | B13: 0 | C13: 160 | D13: 161 | E13: 162 | F13: 163 | G13: 164 | H13: 165 | I13: 166 | J13: 167 | K13: 168 | L13: 169 | M13: 170 | N13: 171 | O13: 172 | P13: 173 | Q13: 174 | R13: 175 | S13: 0 | T13: 0 | U13: 0 | V13: 0 | W13: 0 | X13: 0 | Y13: 0 | Z13: 0 | AA13: 0 | AB13: 0 | AC13: 0 | AD13: 0 | AE13: 0 | AF13: 0 | AK13: 65 | AL13: 0 | AM13: 160 | AN13: 161 | AO13: 162 | AP13: 163 | AQ13: 164 | AR13: 165 | AS13: 166 | AT13: 167 | AU13: 168 | AV13: 169 | AW13: 170 | AX13: 171 | AY13: 172 | AZ13: 173 | BA13: 174 | BB13: 175 | BC13: 0 | BD13: 0 | BE13: 0 | BF13: 0 | BG13: 0 | BH13: 0 | BI13: 0 | BJ13: 0 | BK13: 0 | BL13: 0 | BM13: 0 | BN13: 0 | BO13: 0 | BP13: 0
A14: 66 | B14: 0 | C14: 176 | D14: 177 | E14: 178 | F14: 179 | G14: 180 | H14: 181 | I14: 182 | J14: 183 | K14: 184 | L14: 185 | M14: 186 | N14: 187 | O14: 188 | P14: 189 | Q14: 190 | R14: 191 | S14: 0 | T14: 0 | U14: 0 | V14: 0 | W14: 0 | X14: 0 | Y14: 0 | Z14: 0 | AA14: 0 | AB14: 0 | AC14: 0 | AD14: 0 | AE14: 0 | AF14: 0 | AK14: 66 | AL14: 0 | AM14: 176 | AN14: 177 | AO14: 178 | AP14: 179 | AQ14: 180 | AR14: 181 | AS14: 182 | AT14: 183 | AU14: 184 | AV14: 185 | AW14: 186 | AX14: 187 | AY14: 188 | AZ14: 189 | BA14: 190 | BB14: 191 | BC14: 0 | BD14: 0 | BE14: 0 | BF14: 0 | BG14: 0 | BH14: 0 | BI14: 0 | BJ14: 0 | BK14: 0 | BL14: 0 | BM14: 0 | BN14: 0 | BO14: 0 | BP14: 0
A15: 67 | B15: 0 | C15: 192 | D15: 193 | E15: 194 | F15: 195 | G15: 196 | H15: 197 | I15: 198 | J15: 199 | K15: 200 | L15: 201 | M15: 202 | N15: 203 | O15: 204 | P15: 205 | Q15: 206 | R15: 207 | S15: 0 | T15: 0 | U15: 0 | V15: 0 | W15: 0 | X15: 0 | Y15: 0 | Z15: 0 | AA15: 0 | AB15: 0 | AC15: 0 | AD15: 0 | AE15: 0 | AF15: 0 | AK15: 67 | AL15: 0 | AM15: 192 | AN15: 193 | AO15: 194 | AP15: 195 | AQ15: 196 | AR15: 197 | AS15: 198 | AT15: 199 | AU15: 200 | AV15: 201 | AW15: 202 | AX15: 203 | AY15: 204 | AZ15: 205 | BA15: 206 | BB15: 207 | BC15: 0 | BD15: 0 | BE15: 0 | BF15: 0 | BG15: 0 | BH15: 0 | BI15: 0 | BJ15: 0 | BK15: 0 | BL15: 0 | BM15: 0 | BN15: 0 | BO15: 0 | BP15: 0
A16: 68 | B16: 0 | C16: 208 | D16: 209 | E16: 210 | F16: 211 | G16: 212 | H16: 213 | I16: 214 | J16: 215 | K16: 216 | L16: 217 | M16: 218 | N16: 219 | O16: 220 | P16: 221 | Q16: 222 | R16: 223 | S16: 0 | T16: 0 | U16: 0 | V16: 0 | W16: 0 | X16: 0 | Y16: 0 | Z16: 0 | AA16: 0 | AB16: 0 | AC16: 0 | AD16: 0 | AE16: 0 | AF16: 0 | AK16: 68 | AL16: 0 | AM16: 208 | AN16: 209 | AO16: 210 | AP16: 211 | AQ16: 212 | AR16: 213 | AS16: 214 | AT16: 215 | AU16: 216 | AV16: 217 | AW16: 218 | AX16: 219 | AY16: 220 | AZ16: 221 | BA16: 222 | BB16: 223 | BC16: 0 | BD16: 0 | BE16: 0 | BF16: 0 | BG16: 0 | BH16: 0 | BI16: 0 | BJ16: 0 | BK16: 0 | BL16: 0 | BM16: 0 | BN16: 0 | BO16: 0 | BP16: 0
A17: 69 | B17: 0 | C17: 224 | D17: 225 | E17: 226 | F17: 227 | G17: 228 | H17: 229 | I17: 230 | J17: 231 | K17: 232 | L17: 233 | M17: 234 | N17: 235 | O17: 236 | P17: 237 | Q17: 238 | R17: 239 | S17: 0 | T17: 0 | U17: 0 | V17: 0 | W17: 0 | X17: 0 | Y17: 0 | Z17: 0 | AA17: 0 | AB17: 0 | AC17: 0 | AD17: 0 | AE17: 0 | AF17: 0 | AK17: 69 | AL17: 0 | AM17: 224 | AN17: 225 | AO17: 226 | AP17: 227 | AQ17: 228 | AR17: 229 | AS17: 230 | AT17: 231 | AU17: 232 | AV17: 233 | AW17: 234 | AX17: 235 | AY17: 236 | AZ17: 237 | BA17: 238 | BB17: 239 | BC17: 0 | BD17: 0 | BE17: 0 | BF17: 0 | BG17: 0 | BH17: 0 | BI17: 0 | BJ17: 0 | BK17: 0 | BL17: 0 | BM17: 0 | BN17: 0 | BO17: 0 | BP17: 0
A18: 70 | B18: 0 | C18: 240 | D18: 241 | E18: 242 | F18: 243 | G18: 244 | H18: 245 | I18: 246 | J18: 247 | K18: 248 | L18: 249 | M18: 250 | N18: 251 | O18: 252 | P18: 253 | Q18: 254 | R18: 255 | S18: 0 | T18: 0 | U18: 0 | V18: 0 | W18: 0 | X18: 0 | Y18: 0 | Z18: 0 | AA18: 0 | AB18: 0 | AC18: 0 | AD18: 0 | AE18: 0 | AF18: 0 | AK18: 70 | AL18: 0 | AM18: 240 | AN18: 241 | AO18: 242 | AP18: 243 | AQ18: 244 | AR18: 245 | AS18: 246 | AT18: 247 | AU18: 248 | AV18: 249 | AW18: 250 | AX18: 251 | AY18: 252 | AZ18: 253 | BA18: 254 | BB18: 255 | BC18: 0 | BD18: 0 | BE18: 0 | BF18: 0 | BG18: 0 | BH18: 0 | BI18: 0 | BJ18: 0 | BK18: 0 | BL18: 0 | BM18: 0 | BN18: 0 | BO18: 0 | BP18: 0
A19: 0 | B19: 0 | C19: 0 | D19: 0 | E19: 0 | F19: 0 | G19: 0 | H19: 0 | I19: 0 | J19: 0 | K19: 0 | L19: 0 | M19: 0 | N19: 0 | O19: 0 | P19: 0 | Q19: 0 | R19: 0 | S19: 0 | T19: 0 | U19: 0 | V19: 0 | W19: 0 | X19: 0 | Y19: 0 | Z19: 0 | AA19: 0 | AB19: 0 | AC19: 0 | AD19: 0 | AE19: 0 | AF19: 0 | AK19: 0 | AL19: 0 | AM19: 0 | AN19: 0 | AO19: 0 | AP19: 0 | AQ19: 0 | AR19: 0 | AS19: 0 | AT19: 0 | AU19: 0 | AV19: 0 | AW19: 0 | AX19: 0 | AY19: 0 | AZ19: 0 | BA19: 0 | BB19: 0 | BC19: 0 | BD19: 0 | BE19: 0 | BF19: 0 | BG19: 0 | BH19: 0 | BI19: 0 | BJ19: 0 | BK19: 0 | BL19: 0 | BM19: 0 | BN19: 0 | BO19: 0 | BP19: 0
A20: 0 | B20: 0 | C20: 0 | D20: 0 | E20: 0 | F20: 0 | G20: 0 | H20: 0 | I20: 0 | J20: 0 | K20: 0 | L20: 0 | M20: 0 | N20: 0 | O20: 0 | P20: 0 | Q20: 0 | R20: 0 | S20: 0 | T20: 0 | U20: 0 | V20: 0 | W20: 0 | X20: 0 | Y20: 0 | Z20: 0 | AA20: 0 | AB20: 0 | AC20: 0 | AD20: 0 | AE20: 0 | AF20: 0 | AK20: 0 | AL20: 0 | AM20: 0 | AN20: 0 | AO20: 0 | AP20: 0 | AQ20: 0 | AR20: 0 | AS20: 0 | AT20: 0 | AU20: 0 | AV20: 0 | AW20: 0 | AX20: 0 | AY20: 0 | AZ20: 0 | BA20: 0 | BB20: 0 | BC20: 0 | BD20: 0 | BE20: 0 | BF20: 0 | BG20: 0 | BH20: 0 | BI20: 0 | BJ20: 0 | BK20: 0 | BL20: 0 | BM20: 0 | BN20: 0 | BO20: 0 | BP20: 0
A21: 0 | B21: 0 | C21: 0 | D21: 0 | E21: 0 | F21: 0 | G21: 0 | H21: 0 | I21: 0 | J21: 0 | K21: 0 | L21: 0 | M21: 0 | N21: 0 | O21: 0 | P21: 0 | Q21: 0 | R21: 0 | S21: 0 | T21: 0 | U21: 0 | V21: 0 | W21: 0 | X21: 0 | Y21: 0 | Z21: 0 | AA21: 0 | AB21: 0 | AC21: 0 | AD21: 0 | AE21: 0 | AF21: 0 | AK21: 0 | AL21: 0 | AM21: 0 | AN21: 0 | AO21: 0 | AP21: 0 | AQ21: 0 | AR21: 0 | AS21: 0 | AT21: 0 | AU21: 0 | AV21: 0 | AW21: 0 | AX21: 0 | AY21: 0 | AZ21: 0 | BA21: 0 | BB21: 0 | BC21: 0 | BD21: 0 | BE21: 0 | BF21: 0 | BG21: 0 | BH21: 0 | BI21: 0 | BJ21: 0 | BK21: 0 | BL21: 0 | BM21: 0 | BN21: 0 | BO21: 0 | BP21: 0
A22: 0 | B22: 0 | C22: 0 | D22: 0 | E22: 0 | F22: 0 | G22: 0 | H22: 0 | I22: 0 | J22: 0 | K22: 0 | L22: 0 | M22: 0 | N22: 0 | O22: 0 | P22: 0 | Q22: 0 | R22: 0 | S22: 0 | T22: 0 | U22: 0 | V22: 0 | W22: 0 | X22: 0 | Y22: 0 | Z22: 0 | AA22: 0 | AB22: 0 | AC22: 0 | AD22: 0 | AE22: 0 | AF22: 0 | AK22: 0 | AL22: 0 | AM22: 0 | AN22: 0 | AO22: 0 | AP22: 0 | AQ22: 0 | AR22: 0 | AS22: 0 | AT22: 0 | AU22: 0 | AV22: 0 | AW22: 0 | AX22: 0 | AY22: 0 | AZ22: 0 | BA22: 0 | BB22: 0 | BC22: 0 | BD22: 0 | BE22: 0 | BF22: 0 | BG22: 0 | BH22: 0 | BI22: 0 | BJ22: 0 | BK22: 0 | BL22: 0 | BM22: 0 | BN22: 0 | BO22: 0 | BP22: 0
A23: 0 | B23: 0 | C23: 0 | D23: 0 | E23: 0 | F23: 0 | G23: 0 | H23: 0 | I23: 0 | J23: 0 | K23: 0 | L23: 0 | M23: 0 | N23: 0 | O23: 0 | P23: 0 | Q23: 0 | R23: 0 | S23: 0 | T23: 0 | U23: 0 | V23: 0 | W23: 0 | X23: 0 | Y23: 0 | Z23: 0 | AA23: 0 | AB23: 0 | AC23: 0 | AD23: 0 | AE23: 0 | AF23: 0 | AK23: 0 | AL23: 0 | AM23: 0 | AN23: 0 | AO23: 0 | AP23: 0 | AQ23: 0 | AR23: 0 | AS23: 0 | AT23: 0 | AU23: 0 | AV23: 0 | AW23: 0 | AX23: 0 | AY23: 0 | AZ23: 0 | BA23: 0 | BB23: 0 | BC23: 0 | BD23: 0 | BE23: 0 | BF23: 0 | BG23: 0 | BH23: 0 | BI23: 0 | BJ23: 0 | BK23: 0 | BL23: 0 | BM23: 0 | BN23: 0 | BO23: 0 | BP23: 0
A24: 0 | B24: 0 | C24: 0 | D24: 0 | E24: 0 | F24: 0 | G24: 0 | H24: 0 | I24: 0 | J24: 0 | K24: 0 | L24: 0 | M24: 0 | N24: 0 | O24: 0 | P24: 0 | Q24: 0 | R24: 0 | S24: 0 | T24: 0 | U24: 0 | V24: 0 | W24: 0 | X24: 0 | Y24: 0 | Z24: 0 | AA24: 0 | AB24: 0 | AC24: 0 | AD24: 0 | AE24: 0 | AF24: 255 | AK24: 0 | AL24: 0 | AM24: 0 | AN24: 0 | AO24: 0 | AP24: 0 | AQ24: 0 | AR24: 0 | AS24: 0 | AT24: 0 | AU24: 0 | AV24: 0 | AW24: 0 | AX24: 0 | AY24: 0 | AZ24: 0 | BA24: 0 | BB24: 0 | BC24: 0 | BD24: 0 | BE24: 0 | BF24: 0 | BG24: 0 | BH24: 0 | BI24: 0 | BJ24: 0 | BK24: 0 | BL24: 0 | BM24: 0 | BN24: 0 | BO24: 0 | BP24: 255

Sheet QuestChr
A1: 0 | B1: =DEC2HEX(A1,2) -> 00 | C1: ="#"&DEC2HEX(A1*8,3) -> #000 | D1: 0 | E1: 0 | F1: 0 | G1: 0 | H1: 0 | I1: 0 | J1: 0 | K1: 0
A2: 1 | B2: =DEC2HEX(A2,2) -> 01 | C2: ="#"&DEC2HEX(A2*8,3) -> #008 | D2: 0 | E2: 0 | F2: 0 | G2: 0 | H2: 0 | I2: 0 | J2: 0 | K2: 0
A3: 2 | B3: =DEC2HEX(A3,2) -> 02 | C3: #010 | D3: 0 | E3: 0 | F3: 0 | G3: 0 | H3: 0 | I3: 0 | J3: 0 | K3: 0
A4: 3 | B4: 03 | C4: #018 | D4: 0 | E4: 0 | F4: 0 | G4: 0 | H4: 0 | I4: 0 | J4: 0 | K4: 0
A5: 4 | B5: 04 | C5: #020 | D5: 0 | E5: 0 | F5: 0 | G5: 0 | H5: 0 | I5: 0 | J5: 0 | K5: 0
A6: 5 | B6: 05 | C6: #028 | D6: 0 | E6: 0 | F6: 0 | G6: 0 | H6: 0 | I6: 0 | J6: 0 | K6: 0
A7: 6 | B7: 06 | C7: #030 | D7: 0 | E7: 0 | F7: 0 | G7: 0 | H7: 0 | I7: 0 | J7: 0 | K7: 0
A8: 7 | B8: 07 | C8: #038 | D8: 0 | E8: 0 | F8: 0 | G8: 0 | H8: 0 | I8: 0 | J8: 0 | K8: 0
A9: 8 | B9: 08 | C9: #040 | D9: 0 | E9: 0 | F9: 0 | G9: 0 | H9: 0 | I9: 0 | J9: 0 | K9: 0
A10: 9 | B10: 09 | C10: #048 | D10: 0 | E10: 0 | F10: 0 | G10: 0 | H10: 0 | I10: 0 | J10: 0 | K10: 0
A11: 10 | B11: 0A | C11: #050 | D11: 0 | E11: 0 | F11: 0 | G11: 0 | H11: 0 | I11: 0 | J11: 0 | K11: 0
A12: 11 | B12: 0B | C12: #058 | D12: 0 | E12: 0 | F12: 0 | G12: 0 | H12: 0 | I12: 0 | J12: 0 | K12: 0
A13: 12 | B13: 0C | C13: #060 | D13: 0 | E13: 0 | F13: 0 | G13: 0 | H13: 0 | I13: 0 | J13: 0 | K13: 0
A14: 13 | B14: 0D | C14: #068 | D14: 0 | E14: 0 | F14: 0 | G14: 0 | H14: 0 | I14: 0 | J14: 0 | K14: 0
A15: 14 | B15: 0E | C15: #070 | D15: 0 | E15: 0 | F15: 0 | G15: 0 | H15: 0 | I15: 0 | J15: 0 | K15: 0
A16: 15 | B16: 0F | C16: #078 | D16: 0 | E16: 0 | F16: 0 | G16: 0 | H16: 0 | I16: 0 | J16: 0 | K16: 0
A17: 16 | B17: 10 | C17: #080 | D17: 0 | E17: 0 | F17: 0 | G17: 0 | H17: 0 | I17: 0 | J17: 0 | K17: 0
A18: 17 | B18: 11 | C18: #088 | D18: 0 | E18: 0 | F18: 0 | G18: 0 | H18: 0 | I18: 0 | J18: 0 | K18: 0
A19: 18 | B19: 12 | C19: #090 | D19: 0 | E19: 0 | F19: 0 | G19: 0 | H19: 0 | I19: 0 | J19: 0 | K19: 0
A20: 19 | B20: 13 | C20: #098 | D20: 0 | E20: 0 | F20: 0 | G20: 0 | H20: 0 | I20: 0 | J20: 0 | K20: 0
A21: 20 | B21: 14 | C21: #0A0 | D21: 0 | E21: 0 | F21: 0 | G21: 0 | H21: 0 | I21: 0 | J21: 0 | K21: 0
A22: 21 | B22: 15 | C22: #0A8 | D22: 0 | E22: 0 | F22: 0 | G22: 0 | H22: 0 | I22: 0 | J22: 0 | K22: 0
A23: 22 | B23: 16 | C23: #0B0 | D23: 0 | E23: 0 | F23: 0 | G23: 0 | H23: 0 | I23: 0 | J23: 0 | K23: 0
A24: 23 | B24: 17 | C24: #0B8 | D24: 0 | E24: 0 | F24: 0 | G24: 0 | H24: 0 | I24: 0 | J24: 0 | K24: 0
A25: 24 | B25: 18 | C25: #0C0 | D25: 0 | E25: 0 | F25: 0 | G25: 0 | H25: 0 | I25: 0 | J25: 0 | K25: 0
A26: 25 | B26: 19 | C26: #0C8 | D26: 0 | E26: 0 | F26: 0 | G26: 0 | H26: 0 | I26: 0 | J26: 0 | K26: 0
A27: 26 | B27: 1A | C27: #0D0 | D27: 0 | E27: 0 | F27: 0 | G27: 0 | H27: 0 | I27: 0 | J27: 0 | K27: 0
A28: 27 | B28: 1B | C28: #0D8 | D28: 0 | E28: 0 | F28: 0 | G28: 0 | H28: 0 | I28: 0 | J28: 0 | K28: 0
A29: 28 | B29: 1C | C29: #0E0 | D29: 0 | E29: 0 | F29: 0 | G29: 0 | H29: 0 | I29: 0 | J29: 0 | K29: 0
A30: 29 | B30: 1D | C30: #0E8 | D30: 0 | E30: 0 | F30: 0 | G30: 0 | H30: 0 | I30: 0 | J30: 0 | K30: 0
A31: 30 | B31: 1E | C31: #0F0 | D31: 0 | E31: 0 | F31: 0 | G31: 0 | H31: 0 | I31: 0 | J31: 0 | K31: 0
A32: 31 | B32: 1F | C32: #0F8 | D32: 0 | E32: 0 | F32: 0 | G32: 0 | H32: 0 | I32: 0 | J32: 0 | K32: 0
A33: 32 | B33: 20 | C33: #100 | D33: 0 | E33: 0 | F33: 0 | G33: 0 | H33: 0 | I33: 0 | J33: 0 | K33: 0
A34: 33 | B34: 21 | C34: #108 | D34: 16 | E34: 16 | F34: 16 | G34: 16 | H34: 16 | I34: 0 | J34: 16 | K34: 0
A35: 34 | B35: 22 | C35: #110 | D35: 40 | E35: 40 | F35: 0 | G35: 0 | H35: 0 | I35: 0 | J35: 0 | K35: 0
A36: 35 | B36: 23 | C36: #118 | D36: 40 | E36: 40 | F36: 124 | G36: 40 | H36: 124 | I36: 40 | J36: 40 | K36: 0
A37: 36 | B37: 24 | C37: #120 | D37: 16 | E37: 60 | F37: 80 | G37: 56 | H37: 20 | I37: 120 | J37: 16 | K37: 0
A38: 37 | B38: 25 | C38: #128 | D38: 96 | E38: 100 | F38: 8 | G38: 16 | H38: 32 | I38: 76 | J38: 12 | K38: 0
A39: 38 | B39: 26 | C39: #130 | D39: 32 | E39: 80 | F39: 80 | G39: 32 | H39: 84 | I39: 72 | J39: 52 | K39: 0
A40: 39 | B40: 27 | C40: #138 | D40: 8 | E40: 16 | F40: 32 | G40: 0 | H40: 0 | I40: 0 | J40: 0 | K40: 0
A41: 40 | B41: 28 | C41: #140 | D41: 8 | E41: 16 | F41: 32 | G41: 32 | H41: 32 | I41: 16 | J41: 8 | K41: 0
A42: 41 | B42: 29 | C42: #148 | D42: 32 | E42: 16 | F42: 8 | G42: 8 | H42: 8 | I42: 16 | J42: 32 | K42: 0
A43: 42 | B43: 2A | C43: #150 | D43: 16 | E43: 84 | F43: 56 | G43: 16 | H43: 56 | I43: 84 | J43: 16 | K43: 0
A44: 43 | B44: 2B | C44: #158 | D44: 0 | E44: 16 | F44: 16 | G44: 124 | H44: 16 | I44: 16 | J44: 0 | K44: 0
A45: 44 | B45: 2C | C45: #160 | D45: 0 | E45: 0 | F45: 0 | G45: 0 | H45: 16 | I45: 16 | J45: 32 | K45: 0
A46: 45 | B46: 2D | C46: #168 | D46: 0 | E46: 0 | F46: 0 | G46: 124 | H46: 0 | I46: 0 | J46: 0 | K46: 0
A47: 46 | B47: 2E | C47: #170 | D47: 0 | E47: 0 | F47: 0 | G47: 0 | H47: 0 | I47: 48 | J47: 48 | K47: 0
A48: 47 | B48: 2F | C48: #178 | D48: 0 | E48: 0 | F48: 4 | G48: 8 | H48: 16 | I48: 32 | J48: 64 | K48: 0
A49: 48 | B49: 30 | C49: #180 | D49: 56 | E49: 68 | F49: 76 | G49: 84 | H49: 100 | I49: 68 | J49: 56 | K49: 0
A50: 49 | B50: 31 | C50: #188 | D50: 16 | E50: 48 | F50: 80 | G50: 16 | H50: 16 | I50: 16 | J50: 124 | K50: 0
A51: 50 | B51: 32 | C51: #190 | D51: 56 | E51: 68 | F51: 4 | G51: 4 | H51: 24 | I51: 96 | J51: 124 | K51: 0
A52: 51 | B52: 33 | C52: #198 | D52: 56 | E52: 68 | F52: 4 | G52: 24 | H52: 4 | I52: 68 | J52: 56 | K52: 0
A53: 52 | B53: 34 | C53: #1A0 | D53: 24 | E53: 40 | F53: 72 | G53: 72 | H53: 72 | I53: 124 | J53: 8 | K53: 0
A54: 53 | B54: 35 | C54: #1A8 | D54: 124 | E54: 64 | F54: 120 | G54: 4 | H54: 4 | I54: 68 | J54: 56 | K54: 0
A55: 54 | B55: 36 | C55: #1B0 | D55: 56 | E55: 64 | F55: 120 | G55: 68 | H55: 68 | I55: 68 | J55: 56 | K55: 0
A56: 55 | B56: 37 | C56: #1B8 | D56: 124 | E56: 68 | F56: 4 | G56: 8 | H56: 8 | I56: 16 | J56: 16 | K56: 0
A57: 56 | B57: 38 | C57: #1C0 | D57: 56 | E57: 68 | F57: 68 | G57: 56 | H57: 68 | I57: 68 | J57: 56 | K57: 0
A58: 57 | B58: 39 | C58: #1C8 | D58: 56 | E58: 68 | F58: 68 | G58: 68 | H58: 60 | I58: 4 | J58: 56 | K58: 0
A59: 58 | B59: 3A | C59: #1D0 | D59: 0 | E59: 0 | F59: 16 | G59: 0 | H59: 0 | I59: 16 | J59: 0 | K59: 0
A60: 59 | B60: 3B | C60: #1D8 | D60: 0 | E60: 0 | F60: 16 | G60: 0 | H60: 16 | I60: 16 | J60: 32 | K60: 0
A61: 60 | B61: 3C | C61: #1E0 | D61: 8 | E61: 16 | F61: 32 | G61: 64 | H61: 32 | I61: 16 | J61: 8 | K61: 0
A62: 61 | B62: 3D | C62: #1E8 | D62: 0 | E62: 0 | F62: 124 | G62: 0 | H62: 124 | I62: 0 | J62: 0 | K62: 0
A63: 62 | B63: 3E | C63: #1F0 | D63: 32 | E63: 16 | F63: 8 | G63: 4 | H63: 8 | I63: 16 | J63: 32 | K63: 0
A64: 63 | B64: 3F | C64: #1F8 | D64: 56 | E64: 68 | F64: 68 | G64: 8 | H64: 16 | I64: 0 | J64: 16 | K64: 0
A65: 64 | B65: 40 | C65: #200 | D65: 56 | E65: 68 | F65: 4 | G65: 52 | H65: 84 | I65: 84 | J65: 56 | K65: 0
A66: 65 | B66: 41 | C66: ="#"&DEC2HEX(A66*8,3) -> #208 | D66: 0 | E66: 28 | F66: 34 | G66: 34 | H66: 62 | I66: 34 | J66: 34 | K66: 0
A67: 66 | B67: =DEC2HEX(A67,2) -> 42 | C67: #210 | D67: 0 | E67: 60 | F67: 34 | G67: 60 | H67: 34 | I67: 34 | J67: 60 | K67: 0
A68: 67 | B68: 43 | C68: #218 | D68: 0 | E68: 28 | F68: 34 | G68: 32 | H68: 32 | I68: 34 | J68: 28 | K68: 0
A69: 68 | B69: 44 | C69: #220 | D69: 0 | E69: 60 | F69: 34 | G69: 34 | H69: 34 | I69: 34 | J69: 60 | K69: 0
A70: 69 | B70: 45 | C70: #228 | D70: 0 | E70: 62 | F70: 32 | G70: 60 | H70: 32 | I70: 32 | J70: 62 | K70: 0
A71: 70 | B71: 46 | C71: #230 | D71: 0 | E71: 62 | F71: 32 | G71: 60 | H71: 32 | I71: 32 | J71: 32 | K71: 0
A72: 71 | B72: 47 | C72: #238 | D72: 0 | E72: 28 | F72: 34 | G72: 32 | H72: 38 | I72: 34 | J72: 30 | K72: 0
A73: 72 | B73: 48 | C73: #240 | D73: 0 | E73: 34 | F73: 34 | G73: 34 | H73: 62 | I73: 34 | J73: 34 | K73: 0
A74: 73 | B74: 49 | C74: #248 | D74: 0 | E74: 62 | F74: 8 | G74: 8 | H74: 8 | I74: 8 | J74: 62 | K74: 0
A75: 74 | B75: 4A | C75: #250 | D75: 0 | E75: 2 | F75: 2 | G75: 2 | H75: 2 | I75: 34 | J75: 28 | K75: 0
A76: 75 | B76: 4B | C76: #258 | D76: 0 | E76: 34 | F76: 36 | G76: 40 | H76: 56 | I76: 36 | J76: 34 | K76: 0
A77: 76 | B77: 4C | C77: #260 | D77: 0 | E77: 32 | F77: 32 | G77: 32 | H77: 32 | I77: 32 | J77: 62 | K77: 0
A78: 77 | B78: 4D | C78: #268 | D78: 0 | E78: 34 | F78: 34 | G78: 54 | H78: 54 | I78: 42 | J78: 34 | K78: 0
A79: 78 | B79: 4E | C79: #270 | D79: 0 | E79: 34 | F79: 50 | G79: 42 | H79: 42 | I79: 38 | J79: 34 | K79: 0
A80: 79 | B80: 4F | C80: #278 | D80: 0 | E80: 28 | F80: 34 | G80: 34 | H80: 34 | I80: 34 | J80: 28 | K80: 0
A81: 80 | B81: 50 | C81: #280 | D81: 0 | E81: 60 | F81: 34 | G81: 34 | H81: 60 | I81: 32 | J81: 32 | K81: 0
A82: 81 | B82: 51 | C82: #288 | D82: 0 | E82: 28 | F82: 34 | G82: 34 | H82: 34 | I82: 36 | J82: 26 | K82: 0
A83: 82 | B83: 52 | C83: #290 | D83: 0 | E83: 60 | F83: 34 | G83: 34 | H83: 60 | I83: 36 | J83: 34 | K83: 0
A84: 83 | B84: 53 | C84: #298 | D84: 0 | E84: 28 | F84: 34 | G84: 24 | H84: 12 | I84: 34 | J84: 28 | K84: 0
A85: 84 | B85: 54 | C85: #2A0 | D85: 0 | E85: 62 | F85: 8 | G85: 8 | H85: 8 | I85: 8 | J85: 8 | K85: 0
A86: 85 | B86: 55 | C86: #2A8 | D86: 0 | E86: 34 | F86: 34 | G86: 34 | H86: 34 | I86: 34 | J86: 28 | K86: 0
A87: 86 | B87: 56 | C87: #2B0 | D87: 0 | E87: 34 | F87: 34 | G87: 20 | H87: 20 | I87: 8 | J87: 8 | K87: 0
A88: 87 | B88: 57 | C88: #2B8 | D88: 0 | E88: 34 | F88: 42 | G88: 42 | H88: 42 | I88: 20 | J88: 20 | K88: 0
A89: 88 | B89: 58 | C89: #2C0 | D89: 0 | E89: 34 | F89: 20 | G89: 8 | H89: 8 | I89: 20 | J89: 34 | K89: 0
A90: 89 | B90: 59 | C90: #2C8 | D90: 0 | E90: 34 | F90: 34 | G90: 20 | H90: 8 | I90: 8 | J90: 8 | K90: 0
A91: 90 | B91: 5A | C91: #2D0 | D91: 0 | E91: 62 | F91: 2 | G91: 12 | H91: 24 | I91: 32 | J91: 62 | K91: 0
A92: 91 | B92: 5B | C92: #2D8 | D92: 0 | E92: 28 | F92: 16 | G92: 16 | H92: 16 | I92: 16 | J92: 16 | K92: 28
A93: 92 | B93: 5C | C93: #2E0 | D93: 0 | E93: 32 | F93: 16 | G93: 16 | H93: 8 | I93: 4 | J93: 4 | K93: 2
A94: 93 | B94: 5D | C94: #2E8 | D94: 0 | E94: 28 | F94: 4 | G94: 4 | H94: 4 | I94: 4 | J94: 4 | K94: 28
A95: 94 | B95: 5E | C95: #2F0 | D95: 0 | E95: 8 | F95: 20 | G95: 0 | H95: 0 | I95: 0 | J95: 0 | K95: 0
A96: 95 | B96: 5F | C96: #2F8 | D96: 0 | E96: 0 | F96: 0 | G96: 0 | H96: 0 | I96: 0 | J96: 0 | K96: 62
A97: 96 | B97: 60 | C97: #300 | D97: 0 | E97: 16 | F97: 8 | G97: 4 | H97: 0 | I97: 0 | J97: 0 | K97: 0
A98: 97 | B98: 61 | C98: #308 | D98: 0 | E98: 0 | F98: 28 | G98: 2 | H98: 30 | I98: 34 | J98: 30 | K98: 0
A99: 98 | B99: 62 | C99: #310 | D99: 0 | E99: 32 | F99: 32 | G99: 44 | H99: 50 | I99: 34 | J99: 60 | K99: 0
A100: 99 | B100: 63 | C100: #318 | D100: 0 | E100: 0 | F100: 28 | G100: 34 | H100: 32 | I100: 32 | J100: 28 | K100: 0
A101: 100 | B101: 64 | C101: #320 | D101: 0 | E101: 2 | F101: 2 | G101: 26 | H101: 38 | I101: 34 | J101: 28 | K101: 0
A102: 101 | B102: 65 | C102: #328 | D102: 0 | E102: 0 | F102: 28 | G102: 34 | H102: 62 | I102: 32 | J102: 28 | K102: 0
A103: 102 | B103: 66 | C103: #330 | D103: 0 | E103: 14 | F103: 16 | G103: 60 | H103: 16 | I103: 16 | J103: 16 | K103: 0
A104: 103 | B104: 67 | C104: #338 | D104: 0 | E104: 0 | F104: 30 | G104: 34 | H104: 38 | I104: 26 | J104: 2 | K104: 28
A105: 104 | B105: 68 | C105: #340 | D105: 0 | E105: 32 | F105: 32 | G105: 44 | H105: 50 | I105: 34 | J105: 34 | K105: 0
A106: 105 | B106: 69 | C106: #348 | D106: 0 | E106: 8 | F106: 0 | G106: 24 | H106: 8 | I106: 8 | J106: 12 | K106: 0
A107: 106 | B107: 6A | C107: #350 | D107: 0 | E107: 0 | F107: 4 | G107: 0 | H107: 12 | I107: 4 | J107: 4 | K107: 24
A108: 107 | B108: 6B | C108: #358 | D108: 0 | E108: 32 | F108: 32 | G108: 38 | H108: 40 | I108: 52 | J108: 34 | K108: 0
A109: 108 | B109: 6C | C109: #360 | D109: 0 | E109: 24 | F109: 8 | G109: 8 | H109: 8 | I109: 8 | J109: 12 | K109: 0
A110: 109 | B110: 6D | C110: #368 | D110: 0 | E110: 0 | F110: 60 | G110: 42 | H110: 42 | I110: 42 | J110: 42 | K110: 0
A111: 110 | B111: 6E | C111: #370 | D111: 0 | E111: 0 | F111: 60 | G111: 34 | H111: 34 | I111: 34 | J111: 34 | K111: 0
A112: 111 | B112: 6F | C112: #378 | D112: 0 | E112: 0 | F112: 28 | G112: 34 | H112: 34 | I112: 34 | J112: 28 | K112: 0
A113: 112 | B113: 70 | C113: #380 | D113: 0 | E113: 0 | F113: 44 | G113: 50 | H113: 34 | I113: 60 | J113: 32 | K113: 32
A114: 113 | B114: 71 | C114: #388 | D114: 0 | E114: 0 | F114: 26 | G114: 38 | H114: 34 | I114: 30 | J114: 2 | K114: 2
A115: 114 | B115: 72 | C115: #390 | D115: 0 | E115: 0 | F115: 46 | G115: 48 | H115: 32 | I115: 32 | J115: 32 | K115: 0
A116: 115 | B116: 73 | C116: #398 | D116: 0 | E116: 0 | F116: 30 | G116: 32 | H116: 28 | I116: 2 | J116: 60 | K116: 0
A117: 116 | B117: 74 | C117: #3A0 | D117: 0 | E117: 0 | F117: 16 | G117: 62 | H117: 16 | I117: 16 | J117: 14 | K117: 0
A118: 117 | B118: 75 | C118: #3A8 | D118: 0 | E118: 0 | F118: 36 | G118: 36 | H118: 36 | I118: 36 | J118: 26 | K118: 0
A119: 118 | B119: 76 | C119: #3B0 | D119: 0 | E119: 0 | F119: 34 | G119: 34 | H119: 20 | I119: 20 | J119: 8 | K119: 0
A120: 119 | B120: 77 | C120: #3B8 | D120: 0 | E120: 0 | F120: 42 | G120: 42 | H120: 42 | I120: 42 | J120: 20 | K120: 0
A121: 120 | B121: 78 | C121: #3C0 | D121: 0 | E121: 0 | F121: 34 | G121: 20 | H121: 8 | I121: 20 | J121: 34 | K121: 0
A122: 121 | B122: 79 | C122: #3C8 | D122: 0 | E122: 0 | F122: 34 | G122: 34 | H122: 20 | I122: 20 | J122: 8 | K122: 48
A123: 122 | B123: 7A | C123: #3D0 | D123: 0 | E123: 0 | F123: 62 | G123: 4 | H123: 8 | I123: 16 | J123: 62 | K123: 0
A124: 123 | B124: 7B | C124: #3D8 | D124: 0 | E124: 4 | F124: 8 | G124: 8 | H124: 48 | I124: 8 | J124: 8 | K124: 4
A125: 124 | B125: 7C | C125: #3E0 | D125: 0 | E125: 8 | F125: 8 | G125: 8 | H125: 8 | I125: 8 | J125: 8 | K125: 8
A126: 125 | B126: 7D | C126: #3E8 | D126: 0 | E126: 16 | F126: 8 | G126: 8 | H126: 6 | I126: 8 | J126: 8 | K126: 16
A127: 126 | B127: 7E | C127: #3F0 | D127: 0 | E127: 0 | F127: 0 | G127: 16 | H127: 42 | I127: 4 | J127: 0 | K127: 0
A128: 127 | B128: 7F | C128: #3F8 | D128: 170 | E128: 85 | F128: 170 | G128: 85 | H128: 170 | I128: 85 | J128: 170 | K128: 85
A129: 128 | B129: 80 | C129: #400 | D129: 255 | E129: 227 | F129: 221 | G129: 209 | H129: 197 | I129: 221 | J129: 227 | K129: 255
A130: 129 | B130: 81 | C130: ="#"&DEC2HEX(A130*8,3) -> #408 | D130: 255 | E130: 247 | F130: 231 | G130: 247 | H130: 247 | I130: 247 | J130: 247 | K130: 255
A131: 130 | B131: =DEC2HEX(A131,2) -> 82 | C131: #410 | D131: 255 | E131: 227 | F131: 221 | G131: 253 | H131: 243 | I131: 239 | J131: 193 | K131: 255
A132: 131 | B132: 83 | C132: #418 | D132: 255 | E132: 227 | F132: 221 | G132: 243 | H132: 253 | I132: 221 | J132: 227 | K132: 255
A133: 132 | B133: 84 | C133: #420 | D133: 255 | E133: 249 | F133: 245 | G133: 237 | H133: 221 | I133: 193 | J133: 253 | K133: 255
A134: 133 | B134: 85 | C134: #428 | D134: 255 | E134: 193 | F134: 223 | G134: 195 | H134: 253 | I134: 253 | J134: 195 | K134: 255
A135: 134 | B135: 86 | C135: #430 | D135: 255 | E135: 227 | F135: 223 | G135: 195 | H135: 221 | I135: 221 | J135: 227 | K135: 255
A136: 135 | B136: 87 | C136: #438 | D136: 255 | E136: 193 | F136: 221 | G136: 253 | H136: 251 | I136: 251 | J136: 247 | K136: 255
A137: 136 | B137: 88 | C137: #440 | D137: 255 | E137: 227 | F137: 221 | G137: 227 | H137: 221 | I137: 221 | J137: 227 | K137: 255
A138: 137 | B138: 89 | C138: #448 | D138: 255 | E138: 227 | F138: 221 | G138: 221 | H138: 225 | I138: 253 | J138: 227 | K138: 255
A139: 138 | B139: 8A | C139: #450 | D139: 0 | E139: 4 | F139: 12 | G139: 28 | H139: 60 | I139: 28 | J139: 12 | K139: 4
A140: 139 | B140: 8B | C140: #458 | D140: 0 | E140: 32 | F140: 48 | G140: 56 | H140: 60 | I140: 56 | J140: 48 | K140: 32
A141: 140 | B141: 8C | C141: #460 | D141: 0 | E141: 0 | F141: 8 | G141: 28 | H141: 62 | I141: 127 | J141: 0 | K141: 0
A142: 141 | B142: 8D | C142: #468 | D142: 0 | E142: 0 | F142: 127 | G142: 62 | H142: 28 | I142: 8 | J142: 0 | K142: 0
A143: 142 | B143: 8E | C143: #470 | D143: 0 | E143: 1 | F143: 3 | G143: 7 | H143: 15 | I143: 31 | J143: 63 | K143: 127
A144: 143 | B144: 8F | C144: #478 | D144: 255 | E144: 255 | F144: 255 | G144: 255 | H144: 255 | I144: 255 | J144: 255 | K144: 255
A145: 144 | B145: 90 | C145: #480 | D145: 0 | E145: 0 | F145: 0 | G145: 24 | H145: 24 | I145: 0 | J145: 0 | K145: 0
A146: 145 | B146: 91 | C146: #488 | D146: 0 | E146: 0 | F146: 0 | G146: 255 | H146: 255 | I146: 0 | J146: 0 | K146: 0
A147: 146 | B147: 92 | C147: #490 | D147: 24 | E147: 24 | F147: 24 | G147: 24 | H147: 24 | I147: 24 | J147: 24 | K147: 24
A148: 147 | B148: 93 | C148: #498 | D148: 24 | E148: 24 | F148: 24 | G148: 255 | H148: 255 | I148: 24 | J148: 24 | K148: 24
A149: 148 | B149: 94 | C149: #4A0 | D149: 24 | E149: 24 | F149: 24 | G149: 248 | H149: 248 | I149: 24 | J149: 24 | K149: 24
A150: 149 | B150: 95 | C150: #4A8 | D150: 24 | E150: 24 | F150: 24 | G150: 31 | H150: 31 | I150: 24 | J150: 24 | K150: 24
A151: 150 | B151: 96 | C151: #4B0 | D151: 24 | E151: 24 | F151: 24 | G151: 255 | H151: 255 | I151: 0 | J151: 0 | K151: 0
A152: 151 | B152: 97 | C152: #4B8 | D152: 0 | E152: 0 | F152: 0 | G152: 255 | H152: 255 | I152: 24 | J152: 24 | K152: 24
A153: 152 | B153: 98 | C153: #4C0 | D153: 0 | E153: 0 | F153: 0 | G153: 15 | H153: 31 | I153: 28 | J153: 24 | K153: 24
A154: 153 | B154: 99 | C154: #4C8 | D154: 0 | E154: 0 | F154: 0 | G154: 240 | H154: 248 | I154: 56 | J154: 24 | K154: 24
A155: 154 | B155: 9A | C155: #4D0 | D155: 24 | E155: 24 | F155: 28 | G155: 31 | H155: 15 | I155: 0 | J155: 0 | K155: 0
A156: 155 | B156: 9B | C156: #4D8 | D156: 24 | E156: 24 | F156: 56 | G156: 248 | H156: 240 | I156: 0 | J156: 0 | K156: 0
A157: 156 | B157: 9C | C157: #4E0 | D157: 0 | E157: 24 | F157: 24 | G157: 0 | H157: 0 | I157: 24 | J157: 24 | K157: 0
A158: 157 | B158: 9D | C158: #4E8 | D158: 0 | E158: 0 | F158: 0 | G158: 102 | H158: 102 | I158: 0 | J158: 0 | K158: 0
A159: 158 | B159: 9E | C159: #4F0 | D159: 24 | E159: 12 | F159: 12 | G159: 24 | H159: 24 | I159: 48 | J159: 48 | K159: 24
A160: 159 | B160: 9F | C160: #4F8 | D160: 0 | E160: 0 | F160: 96 | G160: 249 | H160: 159 | I160: 6 | J160: 0 | K160: 0
A161: 160 | B161: A0 | C161: #500 | D161: 0 | E161: 34 | F161: 20 | G161: 62 | H161: 8 | I161: 62 | J161: 8 | K161: 8
A162: 161 | B162: A1 | C162: #508 | D162: 0 | E162: 0 | F162: 0 | G162: 0 | H162: 0 | I162: 32 | J162: 80 | K162: 32
A163: 162 | B163: A2 | C163: #510 | D163: 0 | E163: 14 | F163: 8 | G163: 8 | H163: 8 | I163: 8 | J163: 0 | K163: 0
A164: 163 | B164: A3 | C164: #518 | D164: 0 | E164: 0 | F164: 0 | G164: 16 | H164: 16 | I164: 16 | J164: 16 | K164: 112
A165: 164 | B165: A4 | C165: #520 | D165: 0 | E165: 0 | F165: 0 | G165: 0 | H165: 0 | I165: 64 | J165: 32 | K165: 16
A166: 165 | B166: A5 | C166: #528 | D166: 0 | E166: 0 | F166: 0 | G166: 0 | H166: 24 | I166: 24 | J166: 0 | K166: 0
A167: 166 | B167: A6 | C167: #530 | D167: 0 | E167: 32 | F167: 120 | G167: 32 | H167: 22 | I167: 40 | J167: 64 | K167: 60
A168: 167 | B168: A7 | C168: #538 | D168: 0 | E168: 0 | F168: 16 | G168: 56 | H168: 20 | I168: 60 | J168: 74 | K168: 50
A169: 168 | B169: A8 | C169: #540 | D169: 0 | E169: 0 | F169: 0 | G169: 0 | H169: 72 | I169: 68 | J169: 68 | K169: 32
A170: 169 | B170: A9 | C170: #548 | D170: 0 | E170: 0 | F170: 48 | G170: 0 | H170: 56 | I170: 68 | J170: 4 | K170: 56
A171: 170 | B171: AA | C171: #550 | D171: 0 | E171: 0 | F171: 48 | G171: 0 | H171: 120 | I171: 16 | J171: 36 | K171: 88
A172: 171 | B172: AB | C172: #558 | D172: 0 | E172: 0 | F172: 16 | G172: 56 | H172: 18 | I172: 56 | J172: 84 | K172: 52
A173: 172 | B173: AC | C173: #560 | D173: 0 | E173: 0 | F173: 0 | G173: 40 | H173: 56 | I173: 100 | J173: 32 | K173: 16
A174: 173 | B174: AD | C174: #568 | D174: 0 | E174: 0 | F174: 0 | G174: 16 | H174: 88 | I174: 116 | J174: 88 | K174: 16
A175: 174 | B175: AE | C175: #570 | D175: 0 | E175: 0 | F175: 16 | G175: 28 | H175: 16 | I175: 56 | J175: 84 | K175: 48
A176: 175 | B176: AF | C176: #578 | D176: 0 | E176: 0 | F176: 0 | G176: 0 | H176: 0 | I176: 56 | J176: 4 | K176: 8
A177: 176 | B177: B0 | C177: #580 | D177: 0 | E177: 0 | F177: 0 | G177: 0 | H177: 64 | I177: 62 | J177: 0 | K177: 0
A178: 177 | B178: B1 | C178: #588 | D178: 0 | E178: 16 | F178: 56 | G178: 20 | H178: 60 | I178: 106 | J178: 82 | K178: 52
A179: 178 | B179: B2 | C179: #590 | D179: 0 | E179: 0 | F179: 64 | G179: 68 | H179: 66 | I179: 66 | J179: 82 | K179: 32
A180: 179 | B180: B3 | C180: #598 | D180: 0 | E180: 24 | F180: 0 | G180: 60 | H180: 66 | I180: 2 | J180: 4 | K180: 24
A181: 180 | B181: B4 | C181: #5A0 | D181: 0 | E181: 24 | F181: 0 | G181: 60 | H181: 8 | I181: 16 | J181: 44 | K181: 70
A182: 181 | B182: B5 | C182: #5A8 | D182: 0 | E182: 16 | F182: 122 | G182: 18 | H182: 60 | I182: 82 | J182: 82 | K182: 52
A183: 182 | B183: B6 | C183: #5B0 | D183: 0 | E183: 32 | F183: 36 | G183: 114 | H183: 42 | I183: 40 | J183: 72 | K183: 24
A184: 183 | B184: B7 | C184: #5B8 | D184: 0 | E184: 8 | F184: 60 | G184: 8 | H184: 30 | I184: 4 | J184: 64 | K184: 56
A185: 184 | B185: B8 | C185: #5C0 | D185: 0 | E185: 4 | F185: 12 | G185: 16 | H185: 32 | I185: 16 | J185: 8 | K185: 4
A186: 185 | B186: B9 | C186: #5C8 | D186: 0 | E186: 68 | F186: 68 | G186: 94 | H186: 68 | I186: 68 | J186: 68 | K186: 8
A187: 186 | B187: BA | C187: #5D0 | D187: 0 | E187: 0 | F187: 60 | G187: 0 | H187: 0 | I187: 0 | J187: 66 | K187: 60
A188: 187 | B188: BB | C188: #5D8 | D188: 0 | E188: 16 | F188: 16 | G188: 126 | H188: 8 | I188: 4 | J188: 64 | K188: 56
A189: 188 | B189: BC | C189: #5E0 | D189: 0 | E189: 32 | F189: 32 | G189: 32 | H189: 32 | I189: 34 | J189: 36 | K189: 24
A190: 189 | B190: BD | C190: #5E8 | D190: 0 | E190: 8 | F190: 124 | G190: 24 | H190: 40 | I190: 24 | J190: 8 | K190: 16
A191: 190 | B191: BE | C191: #5F0 | D191: 0 | E191: 4 | F191: 36 | G191: 126 | H191: 36 | I191: 40 | J191: 32 | K191: 28
A192: 191 | B192: BF | C192: #5F8 | D192: 0 | E192: 60 | F192: 8 | G192: 16 | H192: 126 | I192: 24 | J192: 32 | K192: 28
A193: 192 | B193: C0 | C193: #600 | D193: 0 | E193: 32 | F193: 112 | G193: 32 | H193: 46 | I193: 64 | J193: 80 | K193: 78
A194: 193 | B194: C1 | C194: ="#"&DEC2HEX(A194*8,3) -> #608 | D194: 0 | E194: 16 | F194: 124 | G194: 16 | H194: 28 | I194: 2 | J194: 2 | K194: 60
A195: 194 | B195: =DEC2HEX(A195,2) -> C2 | C195: #610 | D195: 0 | E195: 0 | F195: 28 | G195: 98 | H195: 2 | I195: 2 | J195: 28 | K195: 0
A196: 195 | B196: C3 | C196: #618 | D196: 0 | E196: 0 | F196: 126 | G196: 4 | H196: 8 | I196: 16 | J196: 16 | K196: 12
A197: 196 | B197: C4 | C197: #620 | D197: 0 | E197: 64 | F197: 34 | G197: 44 | H197: 16 | I197: 32 | J197: 32 | K197: 30
A198: 197 | B198: C5 | C198: #628 | D198: 0 | E198: 32 | F198: 118 | G198: 32 | H198: 36 | I198: 78 | J198: 20 | K198: 12
A199: 198 | B199: C6 | C199: #630 | D199: 0 | E199: 0 | F199: 78 | G199: 80 | H199: 64 | I199: 64 | J199: 80 | K199: 78
A200: 199 | B200: C7 | C200: #638 | D200: 0 | E200: 0 | F200: 68 | G200: 92 | H200: 42 | I200: 82 | J200: 86 | K200: 39
... 56 more rows

Sheet LIST

Sheet Sheet2 (hidden)
C1: 0 | E1: 0 | G1: 0 | H1: 1 | I1: 2 | J1: 3 | K1: 4 | L1: 5 | M1: 6 | N1: 7
A2: :1000000000100010950B00002D0400002F040000CC | B2: =MID(A2,10,LEN(A2)-9-2) -> 00100010950B00002D0400002F040000 | C2: =C1+1 -> 1 | D2: 00100010950B00002D0400002F040000 | E2: =E1+1 -> 1 | F2: =LEFT(VLOOKUP(E2,$C$2:$D$1745,2),16) -> 00100010950B0000 | G2: =HEX2DEC(MID($F2,G$1*2+1,2)) -> 0 | H2: =HEX2DEC(MID($F2,H$1*2+1,2)) -> 16 | I2: 0 | J2: 16 | K2: 149 | L2: 11 | M2: 0 | N2: 0
A3: :1000100000000000000000000000000000000000E0 | B3: =MID(A3,10,LEN(A3)-9-2) -> 00000000000000000000000000000000 | C3: =C2+1 -> 2 | D3: 00000000000000000000000000000000 | E3: =E2 -> 1 | F3: =RIGHT(VLOOKUP(E3,$C$2:$D$1745,2),16) -> 2D0400002F040000 | G3: =HEX2DEC(MID($F3,G$1*2+1,2)) -> 45 | H3: 4 | I3: 0 | J3: 0 | K3: 47 | L3: 4 | M3: 0 | N3: 0
A4: :100020000000000000000000000000002D0400009F | B4: 0000000000000000000000002D040000 | C4: 3 | D4: 0000000000000000000000002D040000 | E4: =E3+1 -> 2 | F4: =LEFT(VLOOKUP(E4,$C$2:$D$1745,2),16) -> 0000000000000000 | G4: 0 | H4: 0 | I4: 0 | J4: 0 | K4: 0 | L4: 0 | M4: 0 | N4: 0
A5: :1000300000000000000000002D040000B5030000D7 | B5: 00000000000000002D040000B5030000 | C5: 4 | D5: 00000000000000002D040000B5030000 | E5: =E4 -> 2 | F5: =RIGHT(VLOOKUP(E5,$C$2:$D$1745,2),16) -> 0000000000000000 | G5: 0 | H5: 0 | I5: 0 | J5: 0 | K5: 0 | L5: 0 | M5: 0 | N5: 0
A6: :100040002D0400002D0400002D0400002D040000EC | B6: 2D0400002D0400002D0400002D040000 | C6: 5 | D6: 2D0400002D0400002D0400002D040000 | E6: =E5+1 -> 3 | F6: =LEFT(VLOOKUP(E6,$C$2:$D$1745,2),16) -> 0000000000000000 | G6: 0 | H6: 0 | I6: 0 | J6: 0 | K6: 0 | L6: 0 | M6: 0 | N6: 0
A7: :100050002D0400002D0400002D0400002D040000DC | B7: 2D0400002D0400002D0400002D040000 | C7: 6 | D7: 2D0400002D0400002D0400002D040000 | E7: =E6 -> 3 | F7: =RIGHT(VLOOKUP(E7,$C$2:$D$1745,2),16) -> 000000002D040000 | G7: 0 | H7: 0 | I7: 0 | J7: 0 | K7: 45 | L7: 4 | M7: 0 | N7: 0
A8: :100060000D0400002D0400002D0400002D040000EC | B8: 0D0400002D0400002D0400002D040000 | C8: 7 | D8: 0D0400002D0400002D0400002D040000 | E8: =E7+1 -> 4 | F8: =LEFT(VLOOKUP(E8,$C$2:$D$1745,2),16) -> 0000000000000000 | G8: 0 | H8: 0 | I8: 0 | J8: 0 | K8: 0 | L8: 0 | M8: 0 | N8: 0
A9: :100070002D0400002D0400002D0400008D58000008 | B9: 2D0400002D0400002D0400008D580000 | C9: 8 | D9: 2D0400002D0400002D0400008D580000 | E9: =E8 -> 4 | F9: =RIGHT(VLOOKUP(E9,$C$2:$D$1745,2),16) -> 2D040000B5030000 | G9: 45 | H9: 4 | I9: 0 | J9: 0 | K9: 181 | L9: 3 | M9: 0 | N9: 0
A10: :100080009D010000D1030000DD0600002D040000EA | B10: 9D010000D1030000DD0600002D040000 | C10: 9 | D10: 9D010000D1030000DD0600002D040000 | E10: =E9+1 -> 5 | F10: =LEFT(VLOOKUP(E10,$C$2:$D$1745,2),16) -> 2D0400002D040000 | G10: 45 | H10: 4 | I10: 0 | J10: 0 | K10: 45 | L10: 4 | M10: 0 | N10: 0
A11: :100090002D0400007D57000000000000000000005B | B11: 2D0400007D5700000000000000000000 | C11: 10 | D11: 2D0400007D5700000000000000000000 | E11: =E10 -> 5 | F11: =RIGHT(VLOOKUP(E11,$C$2:$D$1745,2),16) -> 2D0400002D040000 | G11: 45 | H11: 4 | I11: 0 | J11: 0 | K11: 45 | L11: 4 | M11: 0 | N11: 0
A12: :1000A0002D0400002D0400002D04000000000000BD | B12: 2D0400002D0400002D04000000000000 | C12: 11 | D12: 2D0400002D0400002D04000000000000 | E12: =E11+1 -> 6 | F12: =LEFT(VLOOKUP(E12,$C$2:$D$1745,2),16) -> 2D0400002D040000 | G12: 45 | H12: 4 | I12: 0 | J12: 0 | K12: 45 | L12: 4 | M12: 0 | N12: 0
A13: :1000B0002D0400002D0400002D0400009911000003 | B13: 2D0400002D0400002D04000099110000 | C13: 12 | D13: 2D0400002D0400002D04000099110000 | E13: =E12 -> 6 | F13: =RIGHT(VLOOKUP(E13,$C$2:$D$1745,2),16) -> 2D0400002D040000 | G13: 45 | H13: 4 | I13: 0 | J13: 0 | K13: 45 | L13: 4 | M13: 0 | N13: 0
A14: :1000C0001A490C604D608E60CF6042460A614A4614 | B14: 1A490C604D608E60CF6042460A614A46 | C14: 13 | D14: 1A490C604D608E60CF6042460A614A46 | E14: =E13+1 -> 7 | F14: =LEFT(VLOOKUP(E14,$C$2:$D$1745,2),16) -> 0D0400002D040000 | G14: 13 | H14: 4 | I14: 0 | J14: 0 | K14: 45 | L14: 4 | M14: 0 | N14: 0
A15: :1000D0004A6152468A615A46CA6162460A626A4663 | B15: 4A6152468A615A46CA6162460A626A46 | C15: 14 | D15: 4A6152468A615A46CA6162460A626A46 | E15: =E14 -> 7 | F15: =RIGHT(VLOOKUP(E15,$C$2:$D$1745,2),16) -> 2D0400002D040000 | G15: 45 | H15: 4 | I15: 0 | J15: 0 | K15: 45 | L15: 4 | M15: 0 | N15: 0
A16: :1000E0004A6272468A6200207047C04610496A46DA | B16: 4A6272468A6200207047C04610496A46 | C16: 15 | D16: 4A6272468A6200207047C04610496A46 | E16: =E15+1 -> 8 | F16: =LEFT(VLOOKUP(E16,$C$2:$D$1745,2),16) -> 2D0400002D040000 | G16: 45 | H16: 4 | I16: 0 | J16: 0 | K16: 45 | L16: 4 | M16: 0 | N16: 0
A17: :1000F00013688B4201D00432FAE7043210600D49D4 | B17: 13688B4201D00432FAE7043210600D49 | C17: 16 | D17: 13688B4201D00432FAE7043210600D49 | E17: =E16 -> 8 | F17: =RIGHT(VLOOKUP(E17,$C$2:$D$1745,2),16) -> 2D0400008D580000 | G17: 45 | H17: 4 | I17: 0 | J17: 0 | K17: 141 | L17: 88 | M17: 0 | N17: 0
A18: :100100009161704709490C684D688E68CF680A692B | B18: 9161704709490C684D688E68CF680A69 | C18: 17 | D18: 9161704709490C684D688E68CF680A69 | E18: =E17+1 -> 9 | F18: =LEFT(VLOOKUP(E18,$C$2:$D$1745,2),16) -> 9D010000D1030000 | G18: 157 | H18: 1 | I18: 0 | J18: 0 | K18: 209 | L18: 3 | M18: 0 | N18: 0
A19: :1001100090464A6991468A699246CA6993460A6A34 | B19: 90464A6991468A699246CA6993460A6A | C19: 18 | D19: 90464A6991468A699246CA6993460A6A | E19: =E18 -> 9 | F19: =RIGHT(VLOOKUP(E19,$C$2:$D$1745,2),16) -> DD0600002D040000 | G19: =HEX2DEC(MID($F19,G$1*2+1,2)) -> 221 | H19: 6 | I19: 0 | J19: 0 | K19: 45 | L19: 4 | M19: 0 | N19: 0
A20: :1001200094464A6A95468A6A9746C046000000107F | B20: 94464A6A95468A6A9746C04600000010 | C20: 19 | D20: 94464A6A95468A6A9746C04600000010 | E20: =E19+1 -> 10 | F20: =LEFT(VLOOKUP(E20,$C$2:$D$1745,2),16) -> 2D0400007D570000 | G20: 45 | H20: 4 | I20: 0 | J20: 0 | K20: 125 | L20: 87 | M20: 0 | N20: 0
A21: :10013000F9FFFFFF0401000010B5002817D0A0222E | B21: F9FFFFFF0401000010B5002817D0A022 | C21: 20 | D21: F9FFFFFF0401000010B5002817D0A022 | E21: =E20 -> 10 | F21: =RIGHT(VLOOKUP(E21,$C$2:$D$1745,2),16) -> 0000000000000000 | G21: 0 | H21: 0 | I21: 0 | J21: 0 | K21: 0 | L21: 0 | M21: 0 | N21: 0
A22: :1001400080238021D2051B02D45849002143D1507D | B22: 80238021D2051B02D45849002143D150 | C22: 21 | D22: 80238021D2051B02D45849002143D150 | E22: =E21+1 -> 11 | F22: =LEFT(VLOOKUP(E22,$C$2:$D$1745,2),16) -> 2D0400002D040000 | G22: 45 | H22: 4 | I22: 0 | J22: 0 | K22: 45 | L22: 4 | M22: 0 | N22: 0
A23: :100150008021D45889002143D15001220B4B023811 | B23: 8021D45889002143D15001220B4B0238 | C23: 22 | D23: 8021D45889002143D15001220B4B0238 | E23: =E22 -> 11 | F23: =RIGHT(VLOOKUP(E23,$C$2:$D$1745,2),16) -> 2D04000000000000 | G23: 45 | H23: 4 | I23: 0 | J23: 0 | K23: 0 | L23: 0 | M23: 0 | N23: 0
A24: :100160005A60434258410A4B4042187010BD074B39 | B24: 5A60434258410A4B4042187010BD074B | C24: 23 | D24: 5A60434258410A4B4042187010BD074B | E24: =E23+1 -> 12 | F24: =LEFT(VLOOKUP(E24,$C$2:$D$1745,2),16) -> 2D0400002D040000 | G24: 45 | H24: 4 | I24: 0 | J24: 0 | K24: 45 | L24: 4 | M24: 0 | N24: 0
A25: :10017000A02258608023D2051B02D15805480140B7 | B25: A02258608023D2051B02D15805480140 | C25: 24 | D25: A02258608023D2051B02D15805480140 | E25: =E24 -> 12 | F25: =RIGHT(VLOOKUP(E25,$C$2:$D$1745,2),16) -> 2D04000099110000 | G25: 45 | H25: 4 | I25: 0 | J25: 0 | K25: 153 | L25: 17 | M25: 0 | N25: 0
A26: :10018000D150D15804480140D150EFE700C00040A1 | B26: D150D15804480140D150EFE700C00040 | C26: 25 | D26: D150D15804480140D150EFE700C00040 | E26: =E25+1 -> 13 | F26: =LEFT(VLOOKUP(E26,$C$2:$D$1745,2),16) -> 1A490C604D608E60 | G26: 26 | H26: 73 | I26: 12 | J26: 96 | K26: 77 | L26: 96 | M26: 142 | N26: 96
A27: :1001900018010010FFFEFFFFFFFDFFFFF0B5DE4678 | B27: 18010010FFFEFFFFFFFDFFFFF0B5DE46 | C27: 26 | D27: 18010010FFFEFFFFFFFDFFFFF0B5DE46 | E27: =E26 -> 13 | F27: =RIGHT(VLOOKUP(E27,$C$2:$D$1745,2),16) -> CF6042460A614A46 | G27: 207 | H27: 96 | I27: 66 | J27: 70 | K27: 10 | L27: 97 | M27: 74 | N27: 70
A28: :1001A00057464E4645461F21E0B5724A87B0136850 | B28: 57464E4645461F21E0B5724A87B01368 | C28: 27 | D28: 57464E4645461F21E0B5724A87B01368 | E28: =E27+1 -> 14 | F28: =LEFT(VLOOKUP(E28,$C$2:$D$1745,2),16) -> 4A6152468A615A46 | G28: 74 | H28: 97 | I28: 82 | J28: 70 | K28: 138 | L28: 97 | M28: 90 | N28: 70
A29: :1001B00011601E39194227D06F48704C436E8B4333 | B29: 11601E39194227D06F48704C436E8B43 | C29: 28 | D29: 11601E39194227D06F48704C436E8B43 | E29: =E28 -> 14 | F29: =RIGHT(VLOOKUP(E29,$C$2:$D$1745,2),16) -> CA6162460A626A46 | G29: 202 | H29: 97 | I29: 98 | J29: 70 | K29: 10 | L29: 98 | M29: 106 | N29: 70
A30: :1001C000A02143666E4BC905C8582040C850C85886 | B30: A02143666E4BC905C8582040C850C858 | C30: 29 | D30: A02143666E4BC905C8582040C850C858 | E30: =E29+1 -> 15 | F30: =LEFT(VLOOKUP(E30,$C$2:$D$1745,2),16) -> 4A6272468A620020 | G30: 74 | H30: 98 | I30: 114 | J30: 70 | K30: 138 | L30: 98 | M30: 0 | N30: 32
A31: :1001D0006C4C2040C8506C494B880878013305307E | B31: 6C4C2040C8506C494B88087801330530 | C31: 30 | D31: 6C4C2040C8506C494B88087801330530 | E31: =E30 -> 15 | F31: =RIGHT(VLOOKUP(E31,$C$2:$D$1745,2),16) -> 7047C04610496A46 | G31: 112 | H31: 71 | I31: 192 | J31: 70 | K31: 16 | L31: 73 | M31: 106 | N31: 70
A32: :1001E0009BB2FF304B80984200DB83E000234B80C2 | B32: 9BB2FF304B80984200DB83E000234B80 | C32: 31 | D32: 9BB2FF304B80984200DB83E000234B80 | E32: =E31+1 -> 16 | F32: =LEFT(VLOOKUP(E32,$C$2:$D$1745,2),16) -> 13688B4201D00432 | G32: 19 | H32: 104 | I32: 139 | J32: 66 | K32: 1 | L32: 208 | M32: 4 | N32: 50
A33: :1001F000604B5A6AD969521ADA6107B03CBC904622 | B33: 604B5A6AD969521ADA6107B03CBC9046 | C33: 32 | D33: 604B5A6AD969521ADA6107B03CBC9046 | E33: =E32 -> 16 | F33: =RIGHT(VLOOKUP(E33,$C$2:$D$1745,2),16) -> FAE7043210600D49 | G33: 250 | H33: 231 | I33: 4 | J33: 50 | K33: 16 | L33: 96 | M33: 13 | N33: 73
A34: :100200009946A246AB46F0BD02221A4000D080E0DB | B34: 9946A246AB46F0BD02221A4000D080E0 | C34: 33 | D34: 9946A246AB46F0BD02221A4000D080E0 | E34: =E33+1 -> 17 | F34: =LEFT(VLOOKUP(E34,$C$2:$D$1745,2),16) -> 9161704709490C68 | G34: 145 | H34: 97 | I34: 112 | J34: 71 | K34: 9 | L34: 73 | M34: 12 | N34: 104
A35: :100210005B07F2D55D4B584C9A60606E0143072036 | B35: 5B07F2D55D4B584C9A60606E01430720 | C35: 34 | D35: 5B07F2D55D4B584C9A60606E01430720 | E35: =E34 -> 17 | F35: =RIGHT(VLOOKUP(E35,$C$2:$D$1745,2),16) -> 4D688E68CF680A69 | G35: =HEX2DEC(MID($F35,G$1*2+1,2)) -> 77 | H35: 104 | I35: 142 | J35: 104 | K35: 207 | L35: 104 | M35: 10 | N35: 105
A36: :10022000616604009A60584A5288293AD1170C40F6 | B36: 616604009A60584A5288293AD1170C40 | C36: 35 | D36: 616604009A60584A5288293AD1170C40 | E36: =E35+1 -> 18 | F36: =LEFT(VLOOKUP(E36,$C$2:$D$1745,2),16) -> 90464A6991468A69 | G36: 144 | H36: 70 | I36: 74 | J36: 105 | K36: 145 | L36: 70 | M36: 138 | N36: 105
A37: :10023000490FA41852180240521A5549E41009787F | B37: 490FA41852180240521A5549E4100978 | C37: 36 | D37: 490FA41852180240521A5549E4100978 | E37: =E36 -> 18 | F37: =RIGHT(VLOOKUP(E37,$C$2:$D$1745,2),16) -> 9246CA6993460A6A | G37: 146 | H37: 70 | I37: 202 | J37: 105 | K37: 147 | L37: 70 | M37: 10 | N37: 106
A38: :1002400090468A46534962010F685349551C097804 | B38: 90468A46534962010F685349551C0978 | C38: 37 | D38: 90468A46534962010F685349551C0978 | E38: =E37+1 -> 19 | F38: =LEFT(VLOOKUP(E38,$C$2:$D$1745,2),16) -> 94464A6A95468A6A | G38: 148 | H38: 70 | I38: 74 | J38: 106 | K38: 149 | L38: 70 | M38: 138 | N38: 106
A39: :100250007D198C465149BF18894605A90191002294 | B39: 7D198C465149BF18894605A901910022 | C39: 38 | D39: 7D198C465149BF18894605A901910022 | E39: =E38 -> 19 | F39: =RIGHT(VLOOKUP(E39,$C$2:$D$1745,2),16) -> 9746C04600000010 | G39: 151 | H39: 70 | I39: 192 | J39: 70 | K39: 0 | L39: 0 | M39: 0 | N39: 16
A40: :10026000022102946446924572D03800B94501D803 | B40: 022102946446924572D03800B94501D8 | C40: 39 | D40: 022102946446924572D03800B94501D8 | E40: =E39+1 -> 20 | F40: =LEFT(VLOOKUP(E40,$C$2:$D$1745,2),16) -> F9FFFFFF04010000 | G40: 249 | H40: 255 | I40: 255 | J40: 255 | K40: 4 | L40: 1 | M40: 0 | N40: 0
A41: :100270004B482818007883465E460020002E03D0A5 | B41: 4B482818007883465E460020002E03D0 | C41: 40 | D41: 4B482818007883465E460020002E03D0 | E41: =E40 -> 20 | F41: =RIGHT(VLOOKUP(E41,$C$2:$D$1745,2),16) -> 10B5002817D0A022 | G41: 16 | H41: 181 | I41: 0 | J41: 40 | K41: 23 | L41: 208 | M41: 160 | N41: 34
A42: :100280000A2E01D058462038464EC000B346464696 | B42: 0A2E01D058462038464EC000B3464646 | C42: 41 | D42: 0A2E01D058462038464EC000B3464646 | E42: =E41+1 -> 21 | F42: =LEFT(VLOOKUP(E42,$C$2:$D$1745,2),16) -> 80238021D2051B02 | G42: 128 | H42: 35 | I42: 128 | J42: 33 | K42: 210 | L42: 5 | M42: 27 | N42: 2
A43: :100290005844805D444001984470501CC0B264468C | B43: 5844805D444001984470501CC0B26446 | C43: 42 | D43: 5844805D444001984470501CC0B26446 | E43: =E42 -> 21 | F43: =RIGHT(VLOOKUP(E43,$C$2:$D$1745,2),16) -> D45849002143D150 | G43: 212 | H43: 88 | I43: 73 | J43: 0 | K43: 33 | L43: 67 | M43: 209 | N43: 80
A44: :1002A000824548D02800A94501D83F482818007841 | B44: 824548D02800A94501D83F4828180078 | C44: 43 | D44: 824548D02800A94501D83F4828180078 | E44: =E43+1 -> 22 | F44: =LEFT(VLOOKUP(E44,$C$2:$D$1745,2),16) -> 8021D45889002143 | G44: 128 | H44: 33 | I44: 212 | J44: 88 | K44: 137 | L44: 0 | M44: 33 | N44: 67
A45: :1002B00083465E460020002E03D00A2E01D0584609 | B45: 83465E460020002E03D00A2E01D05846 | C45: 44 | D45: 83465E460020002E03D00A2E01D05846 | E45: =E44 -> 22 | F45: =RIGHT(VLOOKUP(E45,$C$2:$D$1745,2),16) -> D15001220B4B0238 | G45: 209 | H45: 80 | I45: 1 | J45: 34 | K45: 11 | L45: 75 | M45: 2 | N45: 56
A46: :1002C0002038384EC000B34646465844805D02325E | B46: 2038384EC000B34646465844805D0232 | C46: 45 | D46: 2038384EC000B34646465844805D0232 | E46: =E45+1 -> 23 | F46: =LEFT(VLOOKUP(E46,$C$2:$D$1745,2),16) -> 5A60434258410A4B | G46: 90 | H46: 96 | I46: 67 | J46: 66 | K46: 88 | L46: 65 | M46: 10 | N46: 75
A47: :1002D00044400198D2B20470D8680142FCD005981D | B47: 44400198D2B20470D8680142FCD00598 | C47: 46 | D47: 44400198D2B20470D8680142FCD00598 | E47: =E46 -> 23 | F47: =RIGHT(VLOOKUP(E47,$C$2:$D$1745,2),16) -> 4042187010BD074B | G47: 64 | H47: 66 | I47: 24 | J47: 112 | K47: 16 | L47: 189 | M47: 7 | N47: 75
A48: :1002E000023598600237202ABCD100229A609A60B9 | B48: 023598600237202ABCD100229A609A60 | C48: 47 | D48: 023598600237202ABCD100229A609A60 | E48: =E47+1 -> 24 | F48: =LEFT(VLOOKUP(E48,$C$2:$D$1745,2),16) -> A02258608023D205 | G48: 160 | H48: 34 | I48: 88 | J48: 96 | K48: 128 | L48: 35 | M48: 210 | N48: 5
A49: :1002F0009A6082E7002B00D17AE7032B16D0292BD6 | B49: 9A6082E7002B00D17AE7032B16D0292B | C49: 48 | D49: 9A6082E7002B00D17AE7032B16D0292B | E49: =E48 -> 24 | F49: =RIGHT(VLOOKUP(E49,$C$2:$D$1745,2),16) -> 1B02D15805480140 | G49: 27 | H49: 2 | I49: 209 | J49: 88 | K49: 5 | L49: 72 | M49: 1 | N49: 64
A50: :1003000033D0E92B00D078E7402153698B43536108 | B50: 33D0E92B00D078E7402153698B435361 | C50: 49 | D50: 33D0E92B00D078E7402153698B435361 | E50: =E49+1 -> 25 | F50: =LEFT(VLOOKUP(E50,$C$2:$D$1745,2),16) -> D150D15804480140 | G50: 209 | H50: 80 | I50: 209 | J50: 88 | K50: 4 | L50: 72 | M50: 1 | N50: 64
A51: :1003100073E7A02280211A4BD205D058490001432F | B51: 73E7A02280211A4BD205D05849000143 | C51: 50 | D51: 73E7A02280211A4BD205D05849000143 | E51: =E50 -> 25 | F51: =RIGHT(VLOOKUP(E51,$C$2:$D$1745,2),16) -> D150EFE700C00040 | G51: =HEX2DEC(MID($F51,G$1*2+1,2)) -> 209 | H51: 80 | I51: 239 | J51: 231 | K51: 0 | L51: 192 | M51: 0 | N51: 64
A52: :10032000D150D15817480140D15066E7536AD1697E | B52: D150D15817480140D15066E7536AD169 | C52: 51 | D52: D150D15817480140D15066E7536AD169 | E52: =E51+1 -> 26 | F52: =LEFT(VLOOKUP(E52,$C$2:$D$1745,2),16) -> 18010010FFFEFFFF | G52: 24 | H52: 1 | I52: 0 | J52: 16 | K52: 255 | L52: 254 | M52: 255 | N52: 255
A53: :100330005B1AD36161E71D48029E0078B042B1D1DB | B53: 5B1AD36161E71D48029E0078B042B1D1 | C53: 52 | D53: 5B1AD36161E71D48029E0078B042B1D1 | E53: =E52 -> 26 | F53: =RIGHT(VLOOKUP(E53,$C$2:$D$1745,2),16) -> FFFDFFFFF0B5DE46 | G53: 255 | H53: 253 | I53: 255 | J53: 255 | K53: 240 | L53: 181 | M53: 222 | N53: 70
A54: :1003400044461B480068045D039060464440A9E7AA | B54: 44461B480068045D039060464440A9E7 | C54: 53 | D54: 44461B480068045D039060464440A9E7 | E54: =E53+1 -> 27 | F54: =LEFT(VLOOKUP(E54,$C$2:$D$1745,2),16) -> 57464E4645461F21 | G54: 87 | H54: 70 | I54: 78 | J54: 70 | K54: 69 | L54: 70 | M54: 31 | N54: 33
A55: :100350001648029E0078B04287D14446144800688F | B55: 1648029E0078B04287D1444614480068 | C55: 54 | D55: 1648029E0078B04287D1444614480068 | E55: =E54 -> 27 | F55: =RIGHT(VLOOKUP(E55,$C$2:$D$1745,2),16) -> E0B5724A87B01368 | G55: 224 | H55: 181 | I55: 114 | J55: 74 | K55: 135 | L55: 176 | M55: 19 | N55: 104
A56: :10036000045D0390604644407FE7402153690B439E | B56: 045D0390604644407FE7402153690B43 | C56: 55 | D56: 045D0390604644407FE7402153690B43 | E56: =E55+1 -> 28 | F56: =LEFT(VLOOKUP(E56,$C$2:$D$1745,2),16) -> 11601E39194227D0 | G56: 17 | H56: 96 | I56: 30 | J56: 57 | K56: 25 | L56: 66 | M56: 39 | N56: 208
A57: :10037000536142E700C0004000400440FFFEFFFF21 | B57: 536142E700C0004000400440FFFEFFFF | C57: 56 | D57: 536142E700C0004000400440FFFEFFFF | E57: =E56 -> 28 | F57: =RIGHT(VLOOKUP(E57,$C$2:$D$1745,2),16) -> 6F48704C436E8B43 | G57: 111 | H57: 72 | I57: 112 | J57: 76 | K57: 67 | L57: 110 | M57: 139 | N57: 67
A58: :10038000FC3F0000FFFDFFFF2C00001000000440B8 | B58: FC3F0000FFFDFFFF2C00001000000440 | C58: 57 | D58: FC3F0000FFFDFFFF2C00001000000440 | E58: =E57+1 -> 29 | F58: =LEFT(VLOOKUP(E58,$C$2:$D$1745,2),16) -> A02143666E4BC905 | G58: 160 | H58: 33 | I58: 67 | J58: 102 | K58: 110 | L58: 75 | M58: 201 | N58: 5
A59: :10039000580100105400001018010010E004001073 | B59: 580100105400001018010010E0040010 | C59: 58 | D59: 580100105400001018010010E0040010 | E59: =E58 -> 29 | F59: =RIGHT(VLOOKUP(E59,$C$2:$D$1745,2),16) -> C8582040C850C858 | G59: 200 | H59: 88 | I59: 32 | J59: 64 | K59: 200 | L59: 80 | M59: 200 | N59: 88
A60: :1003A000FFFCFFFF595D000000FDFFFF5901001039 | B60: FFFCFFFF595D000000FDFFFF59010010 | C60: 59 | D60: FFFCFFFF595D000000FDFFFF59010010 | E60: =E59+1 -> 30 | F60: =LEFT(VLOOKUP(E60,$C$2:$D$1745,2),16) -> 6C4C2040C8506C49 | G60: 108 | H60: 76 | I60: 32 | J60: 64 | K60: 200 | L60: 80 | M60: 108 | N60: 73
A61: :1003B0004C000010042210B5034B044C1A60236853 | B61: 4C000010042210B5034B044C1A602368 | C61: 60 | D61: 4C000010042210B5034B044C1A602368 | E61: =E60 -> 30 | F61: =RIGHT(VLOOKUP(E61,$C$2:$D$1745,2),16) -> 4B88087801330530 | G61: 75 | H61: 136 | I61: 8 | J61: 120 | K61: 1 | L61: 51 | M61: 5 | N61: 48
A62: :1003C00098470023236010BD10E000E020010010DA | B62: 98470023236010BD10E000E020010010 | C62: 61 | D62: 98470023236010BD10E000E020010010 | E62: =E61+1 -> 31 | F62: =LEFT(VLOOKUP(E62,$C$2:$D$1745,2),16) -> 9BB2FF304B809842 | G62: 155 | H62: 178 | I62: 255 | J62: 48 | K62: 75 | L62: 128 | M62: 152 | N62: 66
A63: :1003D000A02004220A49C005435830B55340435079 | B63: A02004220A49C005435830B553404350 | C63: 62 | D63: A02004220A49C005435830B553404350 | E63: =E62 -> 31 | F63: =RIGHT(VLOOKUP(E63,$C$2:$D$1745,2),16) -> 00DB83E000234B80 | G63: 0 | H63: 219 | I63: 131 | J63: 224 | K63: 0 | L63: 35 | M63: 75 | N63: 128
A64: :1003E000084B1A60084A9468D568106951698D42B3 | B64: 084B1A60084A9468D568106951698D42 | C64: 63 | D64: 084B1A60084A9468D568106951698D42 | E64: =E63+1 -> 32 | F64: =LEFT(VLOOKUP(E64,$C$2:$D$1745,2),16) -> 604B5A6AD969521A | G64: 96 | H64: 75 | I64: 90 | J64: 106 | K64: 217 | L64: 105 | M64: 82 | N64: 26
A65: :1003F00004D801D1844201D800225A6030BDC046E1 | B65: 04D801D1844201D800225A6030BDC046 | C65: 64 | D65: 04D801D1844201D800225A6030BDC046 | E65: =E64 -> 32 | F65: =RIGHT(VLOOKUP(E65,$C$2:$D$1745,2),16) -> DA6107B03CBC9046 | G65: 218 | H65: 97 | I65: 7 | J65: 176 | K65: 60 | L65: 188 | M65: 144 | N65: 70
A66: :10040000FC3F0000000001402001001082228020FB | B66: FC3F0000000001402001001082228020 | C66: 65 | D66: FC3F0000000001402001001082228020 | E66: =E65+1 -> 33 | F66: =LEFT(VLOOKUP(E66,$C$2:$D$1745,2),16) -> 9946A246AB46F0BD | G66: 153 | H66: 70 | I66: 162 | J66: 70 | K66: 171 | L66: 70 | M66: 240 | N66: 189
A67: :10041000054B920099584000014399508121890071 | B67: =MID(A67,10,LEN(A67)-9-2) -> 054B9200995840000143995081218900 | C67: =C66+1 -> 66 | D67: 054B9200995840000143995081218900 | E67: =E66 -> 33 | F67: =RIGHT(VLOOKUP(E67,$C$2:$D$1745,2),16) -> 02221A4000D080E0 | G67: =HEX2DEC(MID($F67,G$1*2+1,2)) -> 2 | H67: 34 | I67: 26 | J67: 64 | K67: 0 | L67: 208 | M67: 128 | N67: 224
A68: :100420005A5802405A50704700800440FEE7F0B529 | B68: 5A5802405A50704700800440FEE7F0B5 | C68: 67 | D68: 5A5802405A50704700800440FEE7F0B5 | E68: =E67+1 -> 34 | F68: =LEFT(VLOOKUP(E68,$C$2:$D$1745,2),16) -> 5B07F2D55D4B584C | G68: 91 | H68: 7 | I68: 242 | J68: 213 | K68: 93 | L68: 75 | M68: 88 | N68: 76
A69: :1004300080250D222020052404266D02013A002A81 | B69: 80250D222020052404266D02013A002A | C69: 68 | D69: 80250D222020052404266D02013A002A | E69: =E68 -> 34 | F69: =RIGHT(VLOOKUP(E69,$C$2:$D$1745,2),16) -> 9A60606E01430720 | G69: 154 | H69: 96 | I69: 96 | J69: 110 | K69: 1 | L69: 67 | M69: 7 | N69: 32
A70: :1004400005D10B4B0B4ADA60BFF34F8FFEE70A4F23 | B70: 05D10B4B0B4ADA60BFF34F8FFEE70A4F | C70: 69 | D70: 05D10B4B0B4ADA60BFF34F8FFEE70A4F | E70: =E69+1 -> 35 | F70: =LEFT(VLOOKUP(E70,$C$2:$D$1745,2),16) -> 616604009A60584A | G70: 97 | H70: 102 | I70: 4 | J70: 0 | K70: 154 | L70: 96 | M70: 88 | N70: 74
A71: :100450000A497B5843407B50094B0A491F005960A9 | B71: 0A497B5843407B50094B0A491F005960 | C71: 70 | D71: 0A497B5843407B50094B0A491F005960 | E71: =E70 -> 35 | F71: =RIGHT(VLOOKUP(E71,$C$2:$D$1745,2),16) -> 5288293AD1170C40 | G71: 82 | H71: 136 | I71: 41 | J71: 58 | K71: 209 | L71: 23 | M71: 12 | N71: 64
A72: :10046000002199601C6039682942FCD01E60E5E7D4 | B72: 002199601C6039682942FCD01E60E5E7 | C72: 71 | D72: 002199601C6039682942FCD01E60E5E7 | E72: =E71+1 -> 36 | F72: =LEFT(VLOOKUP(E72,$C$2:$D$1745,2),16) -> 490FA41852180240 | G72: 73 | H72: 15 | I72: 164 | J72: 24 | K72: 82 | L72: 24 | M72: 2 | N72: 64
A73: :1004700000ED00E00400FA0500000150FC3F000020 | B73: 00ED00E00400FA0500000150FC3F0000 | C73: 72 | D73: 00ED00E00400FA0500000150FC3F0000 | E73: =E72 -> 36 | F73: =RIGHT(VLOOKUP(E73,$C$2:$D$1745,2),16) -> 521A5549E4100978 | G73: 82 | H73: 26 | I73: 85 | J73: 73 | K73: 228 | L73: 16 | M73: 9 | N73: 120
A74: :1004800010E000E07F8D5B00024B18686B46181A85 | B74: 10E000E07F8D5B00024B18686B46181A | C74: 73 | D74: 10E000E07F8D5B00024B18686B46181A | E74: =E73+1 -> 37 | F74: =LEFT(VLOOKUP(E74,$C$2:$D$1745,2),16) -> 90468A4653496201 | G74: 144 | H74: 70 | I74: 138 | J74: 70 | K74: 83 | L74: 73 | M74: 98 | N74: 1
A75: :100490007047C046300000100300024A1068C318BD | B75: 7047C046300000100300024A1068C318 | C75: 74 | D75: 7047C046300000100300024A1068C318 | E75: =E74 -> 37 | F75: =RIGHT(VLOOKUP(E75,$C$2:$D$1745,2),16) -> 0F685349551C0978 | G75: 15 | H75: 104 | I75: 83 | J75: 73 | K75: 85 | L75: 28 | M75: 9 | N75: 120
A76: :1004A0001360704730000010014B18607047C04661 | B76: 1360704730000010014B18607047C046 | C76: 75 | D76: 1360704730000010014B18607047C046 | E76: =E75+1 -> 38 | F76: =LEFT(VLOOKUP(E76,$C$2:$D$1745,2),16) -> 7D198C465149BF18 | G76: 125 | H76: 25 | I76: 140 | J76: 70 | K76: 81 | L76: 73 | M76: 191 | N76: 24
A77: :1004B00030000010002210B5074C2368934209D188 | B77: 30000010002210B5074C2368934209D1 | C77: 76 | D77: 30000010002210B5074C2368934209D1 | E77: =E76 -> 38 | F77: =RIGHT(VLOOKUP(E77,$C$2:$D$1745,2),16) -> 894605A901910022 | G77: 137 | H77: 70 | I77: 5 | J77: 169 | K77: 1 | L77: 145 | M77: 0 | N77: 34
A78: :1004C0003023434321600549013B4B6007238A6089 | B78: 3023434321600549013B4B6007238A60 | C78: 77 | D78: 3023434321600549013B4B6007238A60 | E78: =E77+1 -> 39 | F78: =LEFT(VLOOKUP(E78,$C$2:$D$1745,2),16) -> 0221029464469245 | G78: 2 | H78: 33 | I78: 2 | J78: 148 | K78: 100 | L78: 70 | M78: 146 | N78: 69
A79: :1004D0000B600132100010BD2001001010E000E0A0 | B79: 0B600132100010BD2001001010E000E0 | C79: 78 | D79: 0B600132100010BD2001001010E000E0 | E79: =E78 -> 39 | F79: =RIGHT(VLOOKUP(E79,$C$2:$D$1745,2),16) -> 72D03800B94501D8 | G79: 114 | H79: 208 | I79: 56 | J79: 0 | K79: 185 | L79: 69 | M79: 1 | N79: 216
A80: :1004E000084B996858685960D968C20299601969BF | B80: 084B996858685960D968C20299601969 | C80: 79 | D80: 084B996858685960D968C20299601969 | E80: =E79+1 -> 40 | F80: =LEFT(VLOOKUP(E80,$C$2:$D$1745,2),16) -> 4B48281800788346 | G80: 75 | H80: 72 | I80: 40 | J80: 24 | K80: 0 | L80: 120 | M80: 131 | N80: 70
A81: :1004F0004240C80C48405040120A5040D960186130 | B81: 4240C80C48405040120A5040D9601861 | C81: 80 | D81: 4240C80C48405040120A5040D9601861 | E81: =E80 -> 40 | F81: =RIGHT(VLOOKUP(E81,$C$2:$D$1745,2),16) -> 5E460020002E03D0 | G81: 94 | H81: 70 | I81: 0 | J81: 32 | K81: 0 | L81: 46 | M81: 3 | N81: 208
A82: :100500007047C04630000010034A53681B011B0CA3 | B82: 7047C04630000010034A53681B011B0C | C82: 81 | D82: 7047C04630000010034A53681B011B0C | E82: =E81+1 -> 41 | F82: =LEFT(VLOOKUP(E82,$C$2:$D$1745,2),16) -> 0A2E01D058462038 | G82: 10 | H82: 46 | I82: 1 | J82: 208 | K82: 88 | L82: 70 | M82: 32 | N82: 56
A83: :100510001B041843506070473000001072B67047DB | B83: 1B041843506070473000001072B67047 | C83: 82 | D83: 1B041843506070473000001072B67047 | E83: =E82 -> 41 | F83: =RIGHT(VLOOKUP(E83,$C$2:$D$1745,2),16) -> 464EC000B3464646 | G83: =HEX2DEC(MID($F83,G$1*2+1,2)) -> 70 | H83: 78 | I83: 192 | J83: 0 | K83: 179 | L83: 70 | M83: 70 | N83: 70
A84: :10052000044B1A7D0023824201D9073003031800CF | B84: 044B1A7D0023824201D9073003031800 | C84: 83 | D84: 044B1A7D0023824201D9073003031800 | E84: =E83+1 -> 42 | F84: =LEFT(VLOOKUP(E84,$C$2:$D$1745,2),16) -> 5844805D44400198 | G84: 88 | H84: 68 | I84: 128 | J84: 93 | K84: 68 | L84: 64 | M84: 1 | N84: 152
A85: :100530007047C0463000001010B5040001F0FEFE08 | B85: 7047C0463000001010B5040001F0FEFE | C85: 84 | D85: 7047C0463000001010B5040001F0FEFE | E85: =E84 -> 42 | F85: =RIGHT(VLOOKUP(E85,$C$2:$D$1745,2),16) -> 4470501CC0B26446 | G85: 68 | H85: 112 | I85: 80 | J85: 28 | K85: 192 | L85: 178 | M85: 100 | N85: 70
A86: :10054000200005F039F910BD70B5040020264518CB | B86: 200005F039F910BD70B5040020264518 | C86: 85 | D86: 200005F039F910BD70B5040020264518 | E86: =E85+1 -> 43 | F86: =LEFT(VLOOKUP(E86,$C$2:$D$1745,2),16) -> 824548D02800A945 | G86: 130 | H86: 69 | I86: 72 | J86: 208 | K86: 40 | L86: 0 | M86: 169 | N86: 69
A87: :10055000AC4200D170BD074B1B78002B02D0207835 | B87: AC4200D170BD074B1B78002B02D02078 | C87: 86 | D87: AC4200D170BD074B1B78002B02D02078 | E87: =E86 -> 43 | F87: =RIGHT(VLOOKUP(E87,$C$2:$D$1745,2),16) -> 01D83F4828180078 | G87: 1 | H87: 216 | I87: 63 | J87: 72 | K87: 40 | L87: 24 | M87: 0 | N87: 120
A88: :1005600001F0BFFE044B5A693242FCD022780134BC | B88: 01F0BFFE044B5A693242FCD022780134 | C88: 87 | D88: 01F0BFFE044B5A693242FCD022780134 | E88: =E87+1 -> 44 | F88: =LEFT(VLOOKUP(E88,$C$2:$D$1745,2),16) -> 83465E460020002E | G88: 131 | H88: 70 | I88: 94 | J88: 70 | K88: 0 | L88: 32 | M88: 0 | N88: 46
A89: :100570001A60EDE76C0100100080004010B50F4BD1 | B89: 1A60EDE76C0100100080004010B50F4B | C89: 88 | D89: 1A60EDE76C0100100080004010B50F4B | E89: =E88 -> 44 | F89: =RIGHT(VLOOKUP(E89,$C$2:$D$1745,2),16) -> 03D00A2E01D05846 | G89: 3 | H89: 208 | I89: 10 | J89: 46 | K89: 1 | L89: 208 | M89: 88 | N89: 70
A90: :100580001B78002B06D001F0B9FE002802DBC0B2B8 | B90: 1B78002B06D001F0B9FE002802DBC0B2 | C90: 89 | D90: 1B78002B06D001F0B9FE002802DBC0B2 | E90: =E89+1 -> 45 | F90: =LEFT(VLOOKUP(E90,$C$2:$D$1745,2),16) -> 2038384EC000B346 | G90: 32 | H90: 56 | I90: 56 | J90: 78 | K90: 192 | L90: 0 | M90: 179 | N90: 70
A91: :1005900005F0E6F80A4B0B4A1978137899420AD00D | B91: 05F0E6F80A4B0B4A1978137899420AD0 | C91: 90 | D91: 05F0E6F80A4B0B4A1978137899420AD0 | E91: =E90 -> 45 | F91: =RIGHT(VLOOKUP(E91,$C$2:$D$1745,2),16) -> 46465844805D0232 | G91: 70 | H91: 70 | I91: 88 | J91: 68 | K91: 128 | L91: 93 | M91: 2 | N91: 50
A92: :1005A00013780949DBB2C85C3F211378C0B201332C | B92: 13780949DBB2C85C3F211378C0B20133 | C92: 91 | D92: 13780949DBB2C85C3F211378C0B20133 | E92: =E91+1 -> 46 | F92: =LEFT(VLOOKUP(E92,$C$2:$D$1745,2),16) -> 44400198D2B20470 | G92: 68 | H92: 64 | I92: 1 | J92: 152 | K92: 210 | L92: 178 | M92: 4 | N92: 112
A93: :1005B0000B40137010BD01204042FBE76C0100109E | B93: 0B40137010BD01204042FBE76C010010 | C93: 92 | D93: 0B40137010BD01204042FBE76C010010 | E93: =E92 -> 46 | F93: =RIGHT(VLOOKUP(E93,$C$2:$D$1745,2),16) -> D8680142FCD00598 | G93: 216 | H93: 104 | I93: 1 | J93: 66 | K93: 252 | L93: 208 | M93: 5 | N93: 152
A94: :1005C0007C010010BD0100107D01001010B5054C2C | B94: 7C010010BD0100107D01001010B5054C | C94: 93 | D94: 7C010010BD0100107D01001010B5054C | E94: =E93+1 -> 47 | F94: =LEFT(VLOOKUP(E94,$C$2:$D$1745,2),16) -> 023598600237202A | G94: 2 | H94: 53 | I94: 152 | J94: 96 | K94: 2 | L94: 55 | M94: 32 | N94: 42
A95: :1005D000206005480260054A1160054A136005F075 | B95: 206005480260054A1160054A136005F0 | C95: 94 | D95: 206005480260054A1160054A136005F0 | E95: =E94 -> 47 | F95: =RIGHT(VLOOKUP(E95,$C$2:$D$1745,2),16) -> BCD100229A609A60 | G95: 188 | H95: 209 | I95: 0 | J95: 34 | K95: 154 | L95: 96 | M95: 154 | N95: 96
A96: :1005E00011FA10BDC8010010DC010010D00100108C | B96: 11FA10BDC8010010DC010010D0010010 | C96: 95 | D96: 11FA10BDC8010010DC010010D0010010 | E96: =E95+1 -> 48 | F96: =LEFT(VLOOKUP(E96,$C$2:$D$1745,2),16) -> 9A6082E7002B00D1 | G96: 154 | H96: 96 | I96: 130 | J96: 231 | K96: 0 | L96: 43 | M96: 0 | N96: 209
A97: :1005F000D80100100B4A0C4B012807D12021D058FC | B97: D80100100B4A0C4B012807D12021D058 | C97: 96 | D97: D80100100B4A0C4B012807D12021D058 | E97: =E96 -> 48 | F97: =RIGHT(VLOOKUP(E97,$C$2:$D$1745,2),16) -> 7AE7032B16D0292B | G97: 122 | H97: 231 | I97: 3 | J97: 43 | K97: 22 | L97: 208 | M97: 41 | N97: 43
A98: :100600000143D150D0588006C00F7047002803D155 | B98: 0143D150D0588006C00F7047002803D1 | C98: 97 | D98: 0143D150D0588006C00F7047002803D1 | E98: =E97+1 -> 49 | F98: =LEFT(VLOOKUP(E98,$C$2:$D$1745,2),16) -> 33D0E92B00D078E7 | G98: 51 | H98: 208 | I98: 233 | J98: 43 | K98: 0 | L98: 208 | M98: 120 | N98: 231
A99: :10061000D15820308143F4E7411CF3D12021D05838 | B99: D15820308143F4E7411CF3D12021D058 | C99: 98 | D99: D15820308143F4E7411CF3D12021D058 | E99: =E98 -> 49 | F99: =RIGHT(VLOOKUP(E99,$C$2:$D$1745,2),16) -> 402153698B435361 | G99: =HEX2DEC(MID($F99,G$1*2+1,2)) -> 64 | H99: 33 | I99: 83 | J99: 105 | K99: 139 | L99: 67 | M99: 83 | N99: 97
A100: :100620004140EEE700000150FC3F0000F8B51B4DD3 | B100: 4140EEE700000150FC3F0000F8B51B4D | C100: 99 | D100: 4140EEE700000150FC3F0000F8B51B4D | E100: =E99+1 -> 50 | F100: =LEFT(VLOOKUP(E100,$C$2:$D$1745,2),16) -> 73E7A02280211A4B | G100: 115 | H100: 231 | I100: 160 | J100: 34 | K100: 128 | L100: 33 | M100: 26 | N100: 75
A101: :1006300083005A59EB185C6A072311681940A142DC | B101: 83005A59EB185C6A072311681940A142 | C101: 100 | D101: 83005A59EB185C6A072311681940A142 | E101: =E100 -> 50 | F101: =RIGHT(VLOOKUP(E101,$C$2:$D$1745,2),16) -> D205D05849000143 | G101: 210 | H101: 5 | I101: 208 | J101: 88 | K101: 73 | L101: 0 | M101: 1 | N101: 67
A102: :1006400007D0EC261368F6001168334023430B40B3 | B102: 07D0EC261368F6001168334023430B40 | C102: 101 | D102: 07D0EC261368F6001168334023430B40 | E102: =E101+1 -> 51 | F102: =LEFT(VLOOKUP(E102,$C$2:$D$1745,2),16) -> D150D15817480140 | G102: 209 | H102: 80 | I102: 209 | J102: 88 | K102: 23 | L102: 72 | M102: 1 | N102: 64
A103: :100650001360134B1B78002B02D001F0FBFDF8BD9B | B103: 1360134B1B78002B02D001F0FBFDF8BD | C103: 102 | D103: 1360134B1B78002B02D001F0FBFDF8BD | E103: =E102 -> 51 | F103: =RIGHT(VLOOKUP(E103,$C$2:$D$1745,2),16) -> D15066E7536AD169 | G103: 209 | H103: 80 | I103: 102 | J103: 231 | K103: 83 | L103: 106 | M103: 209 | N103: 105
A104: :10066000012248350F49285C0C780A7082400E4BF5 | B104: 012248350F49285C0C780A7082400E4B | C104: 103 | D104: 012248350F49285C0C780A7082400E4B | E104: =E103+1 -> 52 | F104: =LEFT(VLOOKUP(E104,$C$2:$D$1745,2),16) -> 5B1AD36161E71D48 | G104: 91 | H104: 26 | I104: 211 | J104: 97 | K104: 97 | L104: 231 | M104: 29 | N104: 72
A105: :100670000E4F1E680E483E401E601E68E4B23043B6 | B105: 0E4F1E680E483E401E601E68E4B23043 | C105: 104 | D105: 0E4F1E680E483E401E601E68E4B23043 | E105: =E104 -> 52 | F105: =RIGHT(VLOOKUP(E105,$C$2:$D$1745,2),16) -> 029E0078B042B1D1 | G105: 2 | H105: 158 | I105: 0 | J105: 120 | K105: 176 | L105: 66 | M105: 177 | N105: 209
A106: :1006800002431A6058680028FCDA1A68094D000411 | B106: 02431A6058680028FCDA1A68094D0004 | C106: 105 | D106: 02431A6058680028FCDA1A68094D0004 | E106: =E105+1 -> 53 | F106: =LEFT(VLOOKUP(E106,$C$2:$D$1745,2),16) -> 44461B480068045D | G106: 68 | H106: 70 | I106: 27 | J106: 72 | K106: 0 | L106: 104 | M106: 4 | N106: 93
A107: :100690002A401A60800D0C70E1E7C046B05C000093 | B107: 2A401A60800D0C70E1E7C046B05C0000 | C107: 106 | D107: 2A401A60800D0C70E1E7C046B05C0000 | E107: =E106 -> 53 | F107: =RIGHT(VLOOKUP(E107,$C$2:$D$1745,2),16) -> 039060464440A9E7 | G107: 3 | H107: 144 | I107: 96 | J107: 70 | K107: 68 | L107: 64 | M107: 169 | N107: 231
A108: :1006A0006C0100106201001000C001400000FFF862 | B108: 6C0100106201001000C001400000FFF8 | C108: 107 | D108: 6C0100106201001000C001400000FFF8 | E108: =E107+1 -> 54 | F108: =LEFT(VLOOKUP(E108,$C$2:$D$1745,2),16) -> 1648029E0078B042 | G108: 22 | H108: 72 | I108: 2 | J108: 158 | K108: 0 | L108: 120 | M108: 176 | N108: 66
A109: :1006B000000B0001FFFFFFF8C021054B05481A6839 | B109: 000B0001FFFFFFF8C021054B05481A68 | C109: 108 | D109: 000B0001FFFFFFF8C021054B05481A68 | E109: =E108 -> 54 | F109: =RIGHT(VLOOKUP(E109,$C$2:$D$1745,2),16) -> 87D1444614480068 | G109: 135 | H109: 209 | I109: 68 | J109: 70 | K109: 20 | L109: 72 | M109: 0 | N109: 104
A110: :1006C0001960054940581A60C006C00F7047C046FF | B110: 1960054940581A60C006C00F7047C046 | C110: 109 | D110: 1960054940581A60C006C00F7047C046 | E110: =E109+1 -> 55 | F110: =LEFT(VLOOKUP(E110,$C$2:$D$1745,2),16) -> 045D039060464440 | G110: 4 | H110: 93 | I110: 3 | J110: 144 | K110: 96 | L110: 70 | M110: 68 | N110: 64
A111: :1006D0009440044000000150FC3F00000120002134 | B111: 9440044000000150FC3F000001200021 | C111: 110 | D111: 9440044000000150FC3F000001200021 | E111: =E110 -> 55 | F111: =RIGHT(VLOOKUP(E111,$C$2:$D$1745,2),16) -> 7FE7402153690B43 | G111: 127 | H111: 231 | I111: 64 | J111: 33 | K111: 83 | L111: 105 | M111: 11 | N111: 67
A112: :1006E00070B5154C2269636912184B412261636130 | B112: 70B5154C2269636912184B4122616361 | C112: 111 | D112: 70B5154C2269636912184B4122616361 | E112: =E111+1 -> 56 | F112: =LEFT(VLOOKUP(E112,$C$2:$D$1745,2),16) -> 536142E700C00040 | G112: 83 | H112: 97 | I112: 66 | J112: 231 | K112: 0 | L112: 192 | M112: 0 | N112: 64
A113: :1006F00001F0ECF900F09EFF2069616980B2FFF71C | B113: 01F0ECF900F09EFF2069616980B2FFF7 | C113: 112 | D113: 01F0ECF900F09EFF2069616980B2FFF7 | E113: =E112 -> 56 | F113: =RIGHT(VLOOKUP(E113,$C$2:$D$1745,2),16) -> 00400440FFFEFFFF | G113: 0 | H113: 64 | I113: 4 | J113: 64 | K113: 255 | L113: 254 | M113: 255 | N113: 255
A114: :1007000003FF237E002B10D00C4D6E7DF6B2FFF759 | B114: 03FF237E002B10D00C4D6E7DF6B2FFF7 | C114: 113 | D114: 03FF237E002B10D00C4D6E7DF6B2FFF7 | E114: =E113+1 -> 57 | F114: =LEFT(VLOOKUP(E114,$C$2:$D$1745,2),16) -> FC3F0000FFFDFFFF | G114: 252 | H114: 63 | I114: 0 | J114: 0 | K114: 255 | L114: 253 | M114: 255 | N114: 255
A115: :10071000D3FF864209D06B7D002B0AD00020210038 | B115: D3FF864209D06B7D002B0AD000202100 | C115: 114 | D115: D3FF864209D06B7D002B0AD000202100 | E115: =E114 -> 57 | F115: =RIGHT(VLOOKUP(E115,$C$2:$D$1745,2),16) -> 2C00001000000440 | G115: =HEX2DEC(MID($F115,G$1*2+1,2)) -> 44 | H115: 0 | I115: 0 | J115: 16 | K115: 0 | L115: 0 | M115: 4 | N115: 64
A116: :1007200002001831687501F041FD1F22044B1A6068 | B116: 02001831687501F041FD1F22044B1A60 | C116: 115 | D116: 02001831687501F041FD1F22044B1A60 | E116: =E115+1 -> 58 | F116: =LEFT(VLOOKUP(E116,$C$2:$D$1745,2),16) -> 5801001054000010 | G116: 88 | H116: 1 | I116: 0 | J116: 16 | K116: 84 | L116: 0 | M116: 0 | N116: 16
A117: :1007300070BD01236B75F8E7200100103000001038 | B117: 70BD01236B75F8E72001001030000010 | C117: 116 | D117: 70BD01236B75F8E72001001030000010 | E117: =E116 -> 58 | F117: =RIGHT(VLOOKUP(E117,$C$2:$D$1745,2),16) -> 18010010E0040010 | G117: 24 | H117: 1 | I117: 0 | J117: 16 | K117: 224 | L117: 4 | M117: 0 | N117: 16
A118: :100740000040014010B5124B1C78002C02D001F083 | B118: 0040014010B5124B1C78002C02D001F0 | C118: 117 | D118: 0040014010B5124B1C78002C02D001F0 | E118: =E117+1 -> 59 | F118: =LEFT(VLOOKUP(E118,$C$2:$D$1745,2),16) -> FFFCFFFF595D0000 | G118: 255 | H118: 252 | I118: 255 | J118: 255 | K118: 89 | L118: 93 | M118: 0 | N118: 0
A119: :1007500069FD10BD022808D1FFF768FF0D4A01238B | B119: 69FD10BD022808D1FFF768FF0D4A0123 | C119: 118 | D119: 69FD10BD022808D1FFF768FF0D4A0123 | E119: =E118 -> 59 | F119: =RIGHT(VLOOKUP(E119,$C$2:$D$1745,2),16) -> 00FDFFFF59010010 | G119: 0 | H119: 253 | I119: 255 | J119: 255 | K119: 89 | L119: 1 | M119: 0 | N119: 16
A120: :10076000904200DC23001800F3E700280CD0A02200 | B120: 904200DC23001800F3E700280CD0A022 | C120: 119 | D120: 904200DC23001800F3E700280CD0A022 | E120: =E119+1 -> 60 | F120: =LEFT(VLOOKUP(E120,$C$2:$D$1745,2),16) -> 4C000010042210B5 | G120: 76 | H120: 0 | I120: 0 | J120: 16 | K120: 4 | L120: 34 | M120: 16 | N120: 181
A121: :10077000094BD205D358094A101850300278D3409B | B121: 094BD205D358094A101850300278D340 | C121: 120 | D121: 094BD205D358094A101850300278D340 | E121: =E120 -> 60 | F121: =RIGHT(VLOOKUP(E121,$C$2:$D$1745,2),16) -> 034B044C1A602368 | G121: 3 | H121: 75 | I121: 4 | J121: 76 | K121: 26 | L121: 96 | M121: 35 | N121: 104
A122: :10078000180001231840E4E701204042E1E7C04699 | B122: 180001231840E4E701204042E1E7C046 | C122: 121 | D122: 180001231840E4E701204042E1E7C046 | E122: =E121+1 -> 61 | F122: =LEFT(VLOOKUP(E122,$C$2:$D$1745,2),16) -> 98470023236010BD | G122: 152 | H122: 71 | I122: 0 | J122: 35 | K122: 35 | L122: 96 | M122: 16 | N122: 189
A123: :100790006C010010FF010000FC3F0000B05C000095 | B123: 6C010010FF010000FC3F0000B05C0000 | C123: 122 | D123: 6C010010FF010000FC3F0000B05C0000 | E123: =E122 -> 61 | F123: =RIGHT(VLOOKUP(E123,$C$2:$D$1745,2),16) -> 10E000E020010010 | G123: 16 | H123: 224 | I123: 0 | J123: 224 | K123: 32 | L123: 1 | M123: 0 | N123: 16
A124: :1007A000802110B58024890043010B400F22C10035 | B124: 802110B58024890043010B400F22C100 | C124: 123 | D124: 802110B58024890043010B400F22C100 | E124: =E123+1 -> 62 | F124: =LEFT(VLOOKUP(E124,$C$2:$D$1745,2),16) -> A02004220A49C005 | G124: 160 | H124: 32 | I124: 4 | J124: 34 | K124: 10 | L124: 73 | M124: 192 | N124: 5
A125: :1007B000640021400B4320210240134342100A40B1 | B125: 640021400B4320210240134342100A40 | C125: 124 | D125: 640021400B4320210240134342100A40 | E125: =E124 -> 62 | F125: =RIGHT(VLOOKUP(E125,$C$2:$D$1745,2),16) -> 435830B553404350 | G125: 67 | H125: 88 | I125: 48 | J125: 181 | K125: 83 | L125: 64 | M125: 67 | N125: 80
A126: :1007C00013430549054A8B50054B1B78002B01D07C | B126: 13430549054A8B50054B1B78002B01D0 | C126: 125 | D126: 13430549054A8B50054B1B78002B01D0 | E126: =E125+1 -> 63 | F126: =LEFT(VLOOKUP(E126,$C$2:$D$1745,2),16) -> 084B1A60084A9468 | G126: 8 | H126: 75 | I126: 26 | J126: 96 | K126: 8 | L126: 74 | M126: 148 | N126: 104
A127: :1007D00001F05BFD10BDC04600000150BC0C0000E4 | B127: 01F05BFD10BDC04600000150BC0C0000 | C127: 126 | D127: 01F05BFD10BDC04600000150BC0C0000 | E127: =E126 -> 63 | F127: =RIGHT(VLOOKUP(E127,$C$2:$D$1745,2),16) -> D568106951698D42 | G127: 213 | H127: 104 | I127: 16 | J127: 105 | K127: 81 | L127: 105 | M127: 141 | N127: 66
A128: :1007E0006C010010F7B50C00811E060003292CD106 | B128: 6C010010F7B50C00811E060003292CD1 | C128: 127 | D128: 6C010010F7B50C00811E060003292CD1 | E128: =E127+1 -> 64 | F128: =LEFT(VLOOKUP(E128,$C$2:$D$1745,2),16) -> 04D801D1844201D8 | G128: 4 | H128: 216 | I128: 1 | J128: 209 | K128: 132 | L128: 66 | M128: 1 | N128: 216
A129: :1007F0002B4D2C4A002C22D0002301276B6013685C | B129: 2B4D2C4A002C22D0002301276B601368 | C129: 128 | D129: 2B4D2C4A002C22D0002301276B601368 | E129: =E128 -> 64 | F129: =RIGHT(VLOOKUP(E129,$C$2:$D$1745,2),16) -> 00225A6030BDC046 | G129: 0 | H129: 34 | I129: 90 | J129: 96 | K129: 48 | L129: 189 | M129: 192 | N129: 70
A130: :1008000004318B433B4313606B6A5D3120000193DD | B130: 04318B433B4313606B6A5D3120000193 | C130: 129 | D130: 04318B433B4313606B6A5D3120000193 | E130: =E129+1 -> 65 | F130: =LEFT(VLOOKUP(E130,$C$2:$D$1745,2),16) -> FC3F000000000140 | G130: 252 | H130: 63 | I130: 0 | J130: 0 | K130: 0 | L130: 0 | M130: 1 | N130: 64
A131: :1008100005F062F930235843019B181A224B1860E7 | B131: =MID(A131,10,LEN(A131)-9-2) -> 05F062F930235843019B181A224B1860 | C131: =C130+1 -> 130 | D131: 05F062F930235843019B181A224B1860 | E131: =E130 -> 65 | F131: =RIGHT(VLOOKUP(E131,$C$2:$D$1745,2),16) -> 2001001082228020 | G131: =HEX2DEC(MID($F131,G$1*2+1,2)) -> 32 | H131: 1 | I131: 0 | J131: 16 | K131: 130 | L131: 34 | M131: 128 | N131: 32
A132: :100820006323EB608023DB006B616F601F4B1B78E1 | B132: 6323EB608023DB006B616F601F4B1B78 | C132: 131 | D132: 6323EB608023DB006B616F601F4B1B78 | E132: =E131+1 -> 66 | F132: =LEFT(VLOOKUP(E132,$C$2:$D$1745,2),16) -> 054B920099584000 | G132: 5 | H132: 75 | I132: 146 | J132: 0 | K132: 153 | L132: 88 | M132: 64 | N132: 0
A133: :10083000002B03D02100300001F034FDF7BD07216B | B133: 002B03D02100300001F034FDF7BD0721 | C133: 132 | D133: 002B03D02100300001F034FDF7BD0721 | E133: =E132 -> 66 | F133: =RIGHT(VLOOKUP(E133,$C$2:$D$1745,2),16) -> 0143995081218900 | G133: 1 | H133: 67 | I133: 153 | J133: 80 | K133: 129 | L133: 33 | M133: 137 | N133: 0
A134: :1008400013688B4313606C60F0E7194B89005918EB | B134: 13688B4313606C60F0E7194B89005918 | C134: 133 | D134: 13688B4313606C60F0E7194B89005918 | E134: =E133+1 -> 67 | F134: =LEFT(VLOOKUP(E134,$C$2:$D$1745,2),16) -> 5A5802405A507047 | G134: 90 | H134: 88 | I134: 2 | J134: 64 | K134: 90 | L134: 80 | M134: 112 | N134: 71
A135: :1008500007238A6D10689843002C0CD0043B034397 | B135: 07238A6D10689843002C0CD0043B0343 | C135: 134 | D135: 07238A6D10689843002C0CD0043B0343 | E135: =E134 -> 67 | F135: =RIGHT(VLOOKUP(E135,$C$2:$D$1745,2),16) -> 00800440FEE7F0B5 | G135: 0 | H135: 128 | I135: 4 | J135: 64 | K135: 254 | L135: 231 | M135: 240 | N135: 181
A136: :100860001360302313486343426A896ED31A0B60C6 | B136: 1360302313486343426A896ED31A0B60 | C136: 135 | D136: 1360302313486343426A896ED31A0B60 | E136: =E135+1 -> 68 | F136: =LEFT(VLOOKUP(E136,$C$2:$D$1745,2),16) -> 80250D2220200524 | G136: 128 | H136: 37 | I136: 13 | J136: 34 | K136: 32 | L136: 32 | M136: 5 | N136: 36
A137: :1008700001234360DAE70121014311600E4A126847 | B137: 01234360DAE70121014311600E4A1268 | C137: 136 | D137: 01234360DAE70121014311600E4A1268 | E137: =E136 -> 68 | F137: =RIGHT(VLOOKUP(E137,$C$2:$D$1745,2),16) -> 04266D02013A002A | G137: 4 | H137: 38 | I137: 109 | J137: 2 | K137: 1 | L137: 58 | M137: 0 | N137: 42
A138: :100880001A40012AD2D10D4A12681A40012ACDD14C | B138: 1A40012AD2D10D4A12681A40012ACDD1 | C138: 137 | D138: 1A40012AD2D10D4A12681A40012ACDD1 | E138: =E137+1 -> 69 | F138: =LEFT(VLOOKUP(E138,$C$2:$D$1745,2),16) -> 05D10B4B0B4ADA60 | G138: 5 | H138: 209 | I138: 11 | J138: 75 | K138: 11 | L138: 74 | M138: 218 | N138: 96
A139: :100890000B4A12681340012BC8D1064B5C60C5E7B8 | B139: 0B4A12681340012BC8D1064B5C60C5E7 | C139: 138 | D139: 0B4A12681340012BC8D1064B5C60C5E7 | E139: =E138 -> 69 | F139: =RIGHT(VLOOKUP(E139,$C$2:$D$1745,2),16) -> BFF34F8FFEE70A4F | G139: 191 | H139: 243 | I139: 79 | J139: 143 | K139: 254 | L139: 231 | M139: 10 | N139: 79
A140: :1008A0000000014038400440180001406C01001075 | B140: 0000014038400440180001406C010010 | C140: 139 | D140: 0000014038400440180001406C010010 | E140: =E139+1 -> 70 | F140: =LEFT(VLOOKUP(E140,$C$2:$D$1745,2),16) -> 0A497B5843407B50 | G140: 10 | H140: 73 | I140: 123 | J140: 88 | K140: 67 | L140: 64 | M140: 123 | N140: 80
A141: :1008B000B05C0000008001407C4004408040044067 | B141: B05C0000008001407C40044080400440 | C141: 140 | D141: B05C0000008001407C40044080400440 | E141: =E140 -> 70 | F141: =RIGHT(VLOOKUP(E141,$C$2:$D$1745,2),16) -> 094B0A491F005960 | G141: 9 | H141: 75 | I141: 10 | J141: 73 | K141: 31 | L141: 0 | M141: 89 | N141: 96
A142: :1008C0009040044070B5302422004243084B64211C | B142: 9040044070B5302422004243084B6421 | C142: 141 | D142: 9040044070B5302422004243084B6421 | E142: =E141+1 -> 71 | F142: =LEFT(VLOOKUP(E142,$C$2:$D$1745,2),16) -> 002199601C603968 | G142: 0 | H142: 33 | I142: 153 | J142: 96 | K142: 28 | L142: 96 | M142: 57 | N142: 104
A143: :1008D0005A62050005F000F94443064B5C62064B82 | B143: 5A62050005F000F94443064B5C62064B | C143: 142 | D143: 5A62050005F000F94443064B5C62064B | E143: =E142 -> 71 | F143: =RIGHT(VLOOKUP(E143,$C$2:$D$1745,2),16) -> 2942FCD01E60E5E7 | G143: 41 | H143: 66 | I143: 252 | J143: 208 | K143: 30 | L143: 96 | M143: 229 | N143: 231
A144: :1008E0001B78002B02D0280001F0ECFC70BDC04644 | B144: 1B78002B02D0280001F0ECFC70BDC046 | C144: 143 | D144: 1B78002B02D0280001F0ECFC70BDC046 | E144: =E143+1 -> 72 | F144: =LEFT(VLOOKUP(E144,$C$2:$D$1745,2),16) -> 00ED00E00400FA05 | G144: 0 | H144: 237 | I144: 0 | J144: 224 | K144: 4 | L144: 0 | M144: 250 | N144: 5
A145: :1008F00000800140000001406C010010F8B5114B70 | B145: 00800140000001406C010010F8B5114B | C145: 144 | D145: 00800140000001406C010010F8B5114B | E145: =E144 -> 72 | F145: =RIGHT(VLOOKUP(E145,$C$2:$D$1745,2),16) -> 00000150FC3F0000 | G145: 0 | H145: 0 | I145: 1 | J145: 80 | K145: 252 | L145: 63 | M145: 0 | N145: 0
A146: :100900008C46996B072319401AD10F4C616000285F | B146: 8C46996B072319401AD10F4C61600028 | C146: 145 | D146: 8C46996B072319401AD10F4C61600028 | E146: =E145+1 -> 73 | F146: =LEFT(VLOOKUP(E146,$C$2:$D$1745,2),16) -> 10E000E07F8D5B00 | G146: 16 | H146: 224 | I146: 0 | J146: 224 | K146: 127 | L146: 141 | M146: 91 | N146: 0
A147: :1009100016D06346002B13D062460B000B4D01002E | B147: 16D06346002B13D062460B000B4D0100 | C147: 146 | D147: 16D06346002B13D062460B000B4D0100 | E147: =E146 -> 73 | F147: =RIGHT(VLOOKUP(E147,$C$2:$D$1745,2),16) -> 024B18686B46181A | G147: =HEX2DEC(MID($F147,G$1*2+1,2)) -> 2 | H147: 75 | I147: 24 | J147: 104 | K147: 107 | L147: 70 | M147: 24 | N147: 26
A148: :100920002E696F6992197B41AA60EB60C0236361F5 | B148: 2E696F6992197B41AA60EB60C0236361 | C148: 147 | D148: 2E696F6992197B41AA60EB60C0236361 | E148: =E147+1 -> 74 | F148: =LEFT(VLOOKUP(E148,$C$2:$D$1745,2),16) -> 7047C04630000010 | G148: 112 | H148: 71 | I148: 192 | J148: 70 | K148: 48 | L148: 0 | M148: 0 | N148: 16
A149: :10093000B73BE360064805F0CFF80123206263600F | B149: B73BE360064805F0CFF8012320626360 | C149: 148 | D149: B73BE360064805F0CFF8012320626360 | E149: =E148 -> 74 | F149: =RIGHT(VLOOKUP(E149,$C$2:$D$1745,2),16) -> 0300024A1068C318 | G149: 3 | H149: 0 | I149: 2 | J149: 74 | K149: 16 | L149: 104 | M149: 195 | N149: 24
A150: :10094000F8BDC046004004400000014020010010F6 | B150: F8BDC046004004400000014020010010 | C150: 149 | D150: F8BDC046004004400000014020010010 | E150: =E149+1 -> 75 | F150: =LEFT(VLOOKUP(E150,$C$2:$D$1745,2),16) -> 1360704730000010 | G150: 19 | H150: 96 | I150: 112 | J150: 71 | K150: 48 | L150: 0 | M150: 0 | N150: 16
A151: :10095000009F2400F7B5002900D174E00225FA2198 | B151: 009F2400F7B5002900D174E00225FA21 | C151: 150 | D151: 009F2400F7B5002900D174E00225FA21 | E151: =E150 -> 75 | F151: =RIGHT(VLOOKUP(E151,$C$2:$D$1745,2),16) -> 014B18607047C046 | G151: 1 | H151: 75 | I151: 24 | J151: 96 | K151: 112 | L151: 71 | M151: 192 | N151: 70
A152: :10096000404C414B6560E360404B8900C01805F086 | B152: 404C414B6560E360404B8900C01805F0 | C152: 151 | D152: 404C414B6560E360404B8900C01805F0 | E152: =E151+1 -> 76 | F152: =LEFT(VLOOKUP(E152,$C$2:$D$1745,2),16) -> 30000010002210B5 | G152: 48 | H152: 0 | I152: 0 | J152: 16 | K152: 0 | L152: 34 | M152: 16 | N152: 181
A153: :10097000B3F80623A06163613D4B80219C46C223EE | B153: B3F80623A06163613D4B80219C46C223 | C153: 152 | D153: B3F80623A06163613D4B80219C46C223 | E153: =E152 -> 76 | F153: =RIGHT(VLOOKUP(E153,$C$2:$D$1745,2),16) -> 074C2368934209D1 | G153: 7 | H153: 76 | I153: 35 | J153: 104 | K153: 147 | L153: 66 | M153: 9 | N153: 209
A154: :10098000624680201366A23BE3633A4B89005A58C3 | B154: 624680201366A23BE3633A4B89005A58 | C154: 153 | D154: 624680201366A23BE3633A4B89005A58 | E154: =E153+1 -> 77 | F154: =LEFT(VLOOKUP(E154,$C$2:$D$1745,2),16) -> 3023434321600549 | G154: 48 | H154: 35 | I154: 67 | J154: 67 | K154: 33 | L154: 96 | M154: 5 | N154: 73
A155: :10099000400002435A5008315A582E0002435A5020 | B155: 400002435A5008315A582E0002435A50 | C155: 154 | D155: 400002435A5008315A582E0002435A50 | E155: =E154 -> 77 | F155: =RIGHT(VLOOKUP(E155,$C$2:$D$1745,2),16) -> 013B4B6007238A60 | G155: 1 | H155: 59 | I155: 75 | J155: 96 | K155: 7 | L155: 35 | M155: 138 | N155: 96
A156: :1009A00004395A5802435A50334A344910600A688D | B156: 04395A5802435A50334A344910600A68 | C156: 155 | D156: 04395A5802435A50334A344910600A68 | E156: =E155+1 -> 78 | F156: =LEFT(VLOOKUP(E156,$C$2:$D$1745,2),16) -> 0B600132100010BD | G156: 11 | H156: 96 | I156: 1 | J156: 50 | K156: 16 | L156: 0 | M156: 16 | N156: 189
A157: :1009B000AA430A608C223249920099508E21F23A61 | B157: AA430A608C223249920099508E21F23A | C157: 156 | D157: AA430A608C223249920099508E21F23A | E157: =E156 -> 78 | F157: =RIGHT(VLOOKUP(E157,$C$2:$D$1745,2),16) -> 2001001010E000E0 | G157: 32 | H157: 1 | I157: 0 | J157: 16 | K157: 16 | L157: 224 | M157: 0 | N157: 224
A158: :1009C000FF3A5A6289005A583E35AA435A508D223E | B158: FF3A5A6289005A583E35AA435A508D22 | C158: 157 | D158: FF3A5A6289005A583E35AA435A508D22 | E158: =E157+1 -> 79 | F158: =LEFT(VLOOKUP(E158,$C$2:$D$1745,2),16) -> 084B996858685960 | G158: 8 | H158: 75 | I158: 153 | J158: 104 | K158: 88 | L158: 104 | M158: 89 | N158: 96
A159: :1009D0005D5892009D501A6F009201221E675D6F54 | B159: 5D5892009D501A6F009201221E675D6F | C159: 158 | D159: 5D5892009D501A6F009201221E675D6F | E159: =E158 -> 79 | F159: =RIGHT(VLOOKUP(E159,$C$2:$D$1745,2),16) -> D968C20299601969 | G159: 217 | H159: 104 | I159: 194 | J159: 2 | K159: 153 | L159: 96 | M159: 25 | N159: 105
A160: :1009E000284E95435D675D6F15435D679425F16FF4 | B160: 284E95435D675D6F15435D679425F16F | C160: 159 | D160: 284E95435D675D6F15435D679425F16F | E160: =E159+1 -> 80 | F160: =LEFT(VLOOKUP(E160,$C$2:$D$1745,2),16) -> 4240C80C48405040 | G160: 66 | H160: 64 | I160: 200 | J160: 12 | K160: 72 | L160: 64 | M160: 80 | N160: 64
A161: :1009F0000191F567244D626029690F0004210F43BE | B161: 0191F567244D626029690F0004210F43 | C161: 160 | D161: 0191F567244D626029690F0004210F43 | E161: =E160 -> 80 | F161: =RIGHT(VLOOKUP(E161,$C$2:$D$1745,2),16) -> 120A5040D9601861 | G161: 18 | H161: 10 | I161: 80 | J161: 64 | K161: 217 | L161: 96 | M161: 24 | N161: 97
A162: :100A00002F6130BF019FF767009E1E675E6F9643A0 | B162: 2F6130BF019FF767009E1E675E6F9643 | C162: 161 | D162: 2F6130BF019FF767009E1E675E6F9643 | E162: =E161+1 -> 81 | F162: =LEFT(VLOOKUP(E162,$C$2:$D$1745,2),16) -> 7047C04630000010 | G162: 112 | H162: 71 | I162: 192 | J162: 70 | K162: 48 | L162: 0 | M162: 0 | N162: 16
A163: :100A10005E675E6F16435E672E698E438E212E6180 | B163: 5E675E6F16435E672E698E438E212E61 | C163: 162 | D163: 5E675E6F16435E672E698E438E212E61 | E163: =E162 -> 81 | F163: =RIGHT(VLOOKUP(E163,$C$2:$D$1745,2),16) -> 034A53681B011B0C | G163: =HEX2DEC(MID($F163,G$1*2+1,2)) -> 3 | H163: 74 | I163: 83 | J163: 104 | K163: 27 | L163: 1 | M163: 27 | N163: 12
A164: :100A20001A4D8900E8674025585802262843585037 | B164: 1A4D8900E86740255858022628435850 | C164: 163 | D164: 1A4D8900E86740255858022628435850 | E164: =E163+1 -> 82 | F164: =LEFT(VLOOKUP(E164,$C$2:$D$1745,2),16) -> 1B04184350607047 | G164: 27 | H164: 4 | I164: 24 | J164: 67 | K164: 80 | L164: 96 | M164: 112 | N164: 71
A165: :100A300000236660E360A361154B63616260C823B5 | B165: 00236660E360A361154B63616260C823 | C165: 164 | D165: 00236660E360A361154B63616260C823 | E165: =E164 -> 82 | F165: =RIGHT(VLOOKUP(E165,$C$2:$D$1745,2),16) -> 3000001072B67047 | G165: 48 | H165: 0 | I165: 0 | J165: 16 | K165: 114 | L165: 182 | M165: 112 | N165: 71
A166: :100A400062461366F7BD02001249C3170C694D696F | B166: 62461366F7BD02001249C3170C694D69 | C166: 165 | D166: 62461366F7BD02001249C3170C694D69 | E166: =E165+1 -> 83 | F166: =LEFT(VLOOKUP(E166,$C$2:$D$1745,2),16) -> 044B1A7D00238242 | G166: 4 | H166: 75 | I166: 26 | J166: 125 | K166: 0 | L166: 35 | M166: 130 | N166: 66
A167: :100A500012196B410C694D69AB42FBD8F2D1A2422D | B167: 12196B410C694D69AB42FBD8F2D1A242 | C167: 166 | D167: 12196B410C694D69AB42FBD8F2D1A242 | E167: =E166 -> 83 | F167: =RIGHT(VLOOKUP(E167,$C$2:$D$1745,2),16) -> 01D9073003031800 | G167: 1 | H167: 217 | I167: 7 | J167: 48 | K167: 3 | L167: 3 | M167: 24 | N167: 0
A168: :100A6000F8D8EFE700C000409E240000E703000034 | B168: F8D8EFE700C000409E240000E7030000 | C168: 167 | D168: F8D8EFE700C000409E240000E7030000 | E168: =E167+1 -> 84 | F168: =LEFT(VLOOKUP(E168,$C$2:$D$1745,2),16) -> 7047C04630000010 | G168: 112 | H168: 71 | I168: 192 | J168: 70 | K168: 48 | L168: 0 | M168: 0 | N168: 16
A169: :100A7000004004400080044000E100E000800340AA | B169: 004004400080044000E100E000800340 | C169: 168 | D169: 004004400080044000E100E000800340 | E169: =E168 -> 84 | F169: =RIGHT(VLOOKUP(E169,$C$2:$D$1745,2),16) -> 10B5040001F0FEFE | G169: 16 | H169: 181 | I169: 4 | J169: 0 | K169: 1 | L169: 240 | M169: 254 | N169: 254
A170: :100A8000BF1800000480044000ED00E004E100E035 | B170: BF1800000480044000ED00E004E100E0 | C170: 169 | D170: BF1800000480044000ED00E004E100E0 | E170: =E169+1 -> 85 | F170: =LEFT(VLOOKUP(E170,$C$2:$D$1745,2),16) -> 200005F039F910BD | G170: 32 | H170: 0 | I170: 5 | J170: 240 | K170: 57 | L170: 249 | M170: 16 | N170: 189
A171: :100A9000090400002001001010B562B600210120F9 | B171: 090400002001001010B562B600210120 | C171: 170 | D171: 090400002001001010B562B600210120 | E171: =E170 -> 85 | F171: =RIGHT(VLOOKUP(E171,$C$2:$D$1745,2),16) -> 70B5040020264518 | G171: 112 | H171: 181 | I171: 4 | J171: 0 | K171: 32 | L171: 38 | M171: 69 | N171: 24
A172: :100AA000FFF758FF00F04EFB00F0DEFF10BD70B501 | B172: FFF758FF00F04EFB00F0DEFF10BD70B5 | C172: 171 | D172: FFF758FF00F04EFB00F0DEFF10BD70B5 | E172: =E171+1 -> 86 | F172: =LEFT(VLOOKUP(E172,$C$2:$D$1745,2),16) -> AC4200D170BD074B | G172: 172 | H172: 66 | I172: 0 | J172: 209 | K172: 112 | L172: 189 | M172: 7 | N172: 75
A173: :100AB0008AB072B6072532232D1A0593069507953D | B173: 8AB072B6072532232D1A059306950795 | C173: 172 | D173: 8AB072B6072532232D1A059306950795 | E173: =E172 -> 86 | F173: =RIGHT(VLOOKUP(E173,$C$2:$D$1745,2),16) -> 1B78002B02D02078 | G173: 27 | H173: 120 | I173: 0 | J173: 43 | K173: 2 | L173: 208 | M173: 32 | N173: 120
A174: :100AC0000D4E01A905A8B047019C002C11D134237B | B174: 0D4E01A905A8B047019C002C11D13423 | C174: 173 | D174: 0D4E01A905A8B047019C002C11D13423 | E174: =E173+1 -> 87 | F174: =LEFT(VLOOKUP(E174,$C$2:$D$1745,2),16) -> 01F0BFFE044B5A69 | G174: 1 | H174: 240 | I174: 191 | J174: 254 | K174: 4 | L174: 75 | M174: 90 | N174: 105
A175: :100AD00005930A4B06950893079501A905A8B04709 | B175: 05930A4B06950893079501A905A8B047 | C175: 174 | D175: 05930A4B06950893079501A905A8B047 | E175: =E174 -> 87 | F175: =RIGHT(VLOOKUP(E175,$C$2:$D$1745,2),16) -> 3242FCD022780134 | G175: 50 | H175: 66 | I175: 252 | J175: 208 | K175: 34 | L175: 120 | M175: 1 | N175: 52
A176: :100AE000019B002B00D0023CFFF7D6FF20000AB08C | B176: 019B002B00D0023CFFF7D6FF20000AB0 | C176: 175 | D176: 019B002B00D0023CFFF7D6FF20000AB0 | E176: =E175+1 -> 88 | F176: =LEFT(VLOOKUP(E176,$C$2:$D$1745,2),16) -> 1A60EDE76C010010 | G176: 26 | H176: 96 | I176: 237 | J176: 231 | K176: 108 | L176: 1 | M176: 0 | N176: 16
A177: :100AF00070BD01246442F7E7F11FFF1F80BB0000B7 | B177: 70BD01246442F7E7F11FFF1F80BB0000 | C177: 176 | D177: 70BD01246442F7E7F11FFF1F80BB0000 | E177: =E176 -> 88 | F177: =RIGHT(VLOOKUP(E177,$C$2:$D$1745,2),16) -> 0080004010B50F4B | G177: 0 | H177: 128 | I177: 0 | J177: 64 | K177: 16 | L177: 181 | M177: 15 | N177: 75
A178: :100B0000F0B58FB0050002910392FFF7D0FF041EED | B178: F0B58FB0050002910392FFF7D0FF041E | C178: 177 | D178: F0B58FB0050002910392FFF7D0FF041E | E178: =E177+1 -> 89 | F178: =LEFT(VLOOKUP(E178,$C$2:$D$1745,2),16) -> 1B78002B06D001F0 | G178: 27 | H178: 120 | I178: 0 | J178: 43 | K178: 6 | L178: 208 | M178: 1 | N178: 240
A179: :100B100032D172B62800FFF703FD061E2FD0250044 | B179: 32D172B62800FFF703FD061E2FD02500 | C179: 178 | D179: 32D172B62800FFF703FD061E2FD02500 | E179: =E178 -> 89 | F179: =RIGHT(VLOOKUP(E179,$C$2:$D$1745,2),16) -> B9FE002802DBC0B2 | G179: =HEX2DEC(MID($F179,G$1*2+1,2)) -> 185 | H179: 254 | I179: 0 | J179: 40 | K179: 2 | L179: 219 | M179: 192 | N179: 178
A180: :100B2000030B0193039B9D4204D3FFF7B5FF200005 | B180: 030B0193039B9D4204D3FFF7B5FF2000 | C180: 179 | D180: 030B0193039B9D4204D3FFF7B5FF2000 | E180: =E179+1 -> 90 | F180: =LEFT(VLOOKUP(E180,$C$2:$D$1745,2),16) -> 05F0E6F80A4B0B4A | G180: 5 | H180: 240 | I180: 230 | J180: 248 | K180: 10 | L180: 75 | M180: 11 | N180: 74
A181: :100B30000FB0F0BD32230993019B144F0A930B931E | B181: 0FB0F0BD32230993019B144F0A930B93 | C181: 180 | D181: 0FB0F0BD32230993019B144F0A930B93 | E181: =E180 -> 90 | F181: =RIGHT(VLOOKUP(E181,$C$2:$D$1745,2),16) -> 1978137899420AD0 | G181: 25 | H181: 120 | I181: 19 | J181: 120 | K181: 153 | L181: 66 | M181: 10 | N181: 208
A182: :100B400005A909A8B847059B002B1AD1333309938F | B182: 05A909A8B847059B002B1AD133330993 | C182: 181 | D182: 05A909A8B847059B002B1AD133330993 | E182: =E181+1 -> 91 | F182: =LEFT(VLOOKUP(E182,$C$2:$D$1745,2),16) -> 13780949DBB2C85C | G182: 19 | H182: 120 | I182: 9 | J182: 73 | K182: 219 | L182: 178 | M182: 200 | N182: 92
A183: :100B500073190A93029B05A95B190B938023DB0091 | B183: 73190A93029B05A95B190B938023DB00 | C183: 182 | D183: 73190A93029B05A95B190B938023DB00 | E183: =E182 -> 91 | F183: =RIGHT(VLOOKUP(E183,$C$2:$D$1745,2),16) -> 3F211378C0B20133 | G183: 63 | H183: 33 | I183: 19 | J183: 120 | K183: 192 | L183: 178 | M183: 1 | N183: 51
A184: :100B60000C930B4B09A80D93B847059B002B0AD19A | B184: 0C930B4B09A80D93B847059B002B0AD1 | C184: 183 | D184: 0C930B4B09A80D93B847059B002B0AD1 | E184: =E183+1 -> 92 | F184: =LEFT(VLOOKUP(E184,$C$2:$D$1745,2),16) -> 0B40137010BD0120 | G184: 11 | H184: 64 | I184: 19 | J184: 112 | K184: 16 | L184: 189 | M184: 1 | N184: 32
A185: :100B70008023DB00ED18D5E702246442D5E7042486 | B185: 8023DB00ED18D5E702246442D5E70424 | C185: 184 | D185: 8023DB00ED18D5E702246442D5E70424 | E185: =E184 -> 92 | F185: =RIGHT(VLOOKUP(E185,$C$2:$D$1745,2),16) -> 4042FBE76C010010 | G185: 64 | H185: 66 | I185: 251 | J185: 231 | K185: 108 | L185: 1 | M185: 0 | N185: 16
A186: :100B8000FBE70124F9E70324F7E7C046F11FFF1F45 | B186: FBE70124F9E70324F7E7C046F11FFF1F | C186: 185 | D186: FBE70124F9E70324F7E7C046F11FFF1F | E186: =E185+1 -> 93 | F186: =LEFT(VLOOKUP(E186,$C$2:$D$1745,2),16) -> 7C010010BD010010 | G186: 124 | H186: 1 | I186: 0 | J186: 16 | K186: 189 | L186: 1 | M186: 0 | N186: 16
A187: :100B900080BB00000023F7B5BB48BC49BC4C02AF8A | B187: 80BB00000023F7B5BB48BC49BC4C02AF | C187: 186 | D187: 80BB00000023F7B5BB48BC49BC4C02AF | E187: =E186 -> 93 | F187: =RIGHT(VLOOKUP(E187,$C$2:$D$1745,2),16) -> 7D01001010B5054C | G187: 125 | H187: 1 | I187: 0 | J187: 16 | K187: 16 | L187: 181 | M187: 5 | N187: 76
A188: :100BA0001A188A4200D267E10021BA4BBA4A93422E | B188: 1A188A4200D267E10021BA4BBA4A9342 | C188: 187 | D188: 1A188A4200D267E10021BA4BBA4A9342 | E188: =E187+1 -> 94 | F188: =LEFT(VLOOKUP(E188,$C$2:$D$1745,2),16) -> 206005480260054A | G188: 32 | H188: 96 | I188: 5 | J188: 72 | K188: 2 | L188: 96 | M188: 5 | N188: 74
A189: :100BB00000D265E104F04CFF802320264125B7498F | B189: 00D265E104F04CFF802320264125B749 | C189: 188 | D189: 00D265E104F04CFF802320264125B749 | E189: =E188 -> 94 | F189: =RIGHT(VLOOKUP(E189,$C$2:$D$1745,2),16) -> 1160054A136005F0 | G189: 17 | H189: 96 | I189: 5 | J189: 74 | K189: 19 | L189: 96 | M189: 5 | N189: 240
A190: :100BC0001B02CA58B64C3243CA500A59B548B24300 | B190: 1B02CA58B64C3243CA500A59B548B243 | C190: 189 | D190: 1B02CA58B64C3243CA500A59B548B243 | E190: =E189+1 -> 95 | F190: =LEFT(VLOOKUP(E190,$C$2:$D$1745,2),16) -> 11FA10BDC8010010 | G190: 17 | H190: 250 | I190: 16 | J190: 189 | K190: 200 | L190: 1 | M190: 0 | N190: 16
A191: :100BD0000A51B54A1560A022D205D5580540D55016 | B191: 0A51B54A1560A022D205D5580540D550 | C191: 190 | D191: 0A51B54A1560A022D205D5580540D550 | E191: =E190 -> 95 | F191: =RIGHT(VLOOKUP(E191,$C$2:$D$1745,2),16) -> DC010010D0010010 | G191: 220 | H191: 1 | I191: 0 | J191: 16 | K191: 208 | L191: 1 | M191: 0 | N191: 16
A192: :100BE0004225B24845674020D558B543D550D55821 | B192: 4225B24845674020D558B543D550D558 | C192: 191 | D192: 4225B24845674020D558B543D550D558 | E192: =E191+1 -> 96 | F192: =LEFT(VLOOKUP(E192,$C$2:$D$1745,2),16) -> D80100100B4A0C4B | G192: 216 | H192: 1 | I192: 0 | J192: 16 | K192: 11 | L192: 74 | M192: 12 | N192: 75
A193: :100BF0001F3E8543AD48D550856F35438567CD5839 | B193: 1F3E8543AD48D550856F35438567CD58 | C193: 192 | D193: 1F3E8543AD48D550856F35438567CD58 | E193: =E192 -> 96 | F193: =RIGHT(VLOOKUP(E193,$C$2:$D$1745,2),16) -> 012807D12021D058 | G193: 1 | H193: 40 | I193: 7 | J193: 209 | K193: 32 | L193: 33 | M193: 208 | N193: 88
A194: :100C00003543CD500D59B5430D51C56F3543C567BB | B194: 3543CD500D59B5430D51C56F3543C567 | C194: 193 | D194: 3543CD500D59B5430D51C56F3543C567 | E194: =E193+1 -> 97 | F194: =LEFT(VLOOKUP(E194,$C$2:$D$1745,2),16) -> 0143D150D0588006 | G194: 1 | H194: 67 | I194: 209 | J194: 80 | K194: 208 | L194: 88 | M194: 128 | N194: 6
A195: :100C10000220CD58A64E0543CD500D5985430D51A8 | B195: =MID(A195,10,LEN(A195)-9-2) -> 0220CD58A64E0543CD500D5985430D51 | C195: =C194+1 -> 194 | D195: 0220CD58A64E0543CD500D5985430D51 | E195: =E194 -> 97 | F195: =RIGHT(VLOOKUP(E195,$C$2:$D$1745,2),16) -> C00F7047002803D1 | G195: =HEX2DEC(MID($F195,G$1*2+1,2)) -> 192 | H195: 15 | I195: 112 | J195: 71 | K195: 0 | L195: 40 | M195: 3 | N195: 209
A196: :100C2000F56F01380543F5670425CE582E43CE50A5 | B196: F56F01380543F5670425CE582E43CE50 | C196: 195 | D196: F56F01380543F5670425CE582E43CE50 | E196: =E195+1 -> 98 | F196: =LEFT(VLOOKUP(E196,$C$2:$D$1745,2),16) -> D15820308143F4E7 | G196: 209 | H196: 88 | I196: 32 | J196: 48 | K196: 129 | L196: 67 | M196: 244 | N196: 231
A197: :100C30000E59AE430E519F4E9F4DB4463668064343 | B197: 0E59AE430E519F4E9F4DB44636680643 | C197: 196 | D197: 0E59AE430E519F4E9F4DB44636680643 | E197: =E196 -> 98 | F197: =RIGHT(VLOOKUP(E197,$C$2:$D$1745,2),16) -> 411CF3D12021D058 | G197: 65 | H197: 28 | I197: 243 | J197: 209 | K197: 32 | L197: 33 | M197: 208 | N197: 88
A198: :100C4000604606600820CE580643CE500E598643B3 | B198: 604606600820CE580643CE500E598643 | C198: 197 | D198: 604606600820CE580643CE500E598643 | E198: =E197+1 -> 99 | F198: =LEFT(VLOOKUP(E198,$C$2:$D$1745,2),16) -> 4140EEE700000150 | G198: 65 | H198: 64 | I198: 238 | J198: 231 | K198: 0 | L198: 0 | M198: 1 | N198: 80
A199: :100C50000E51CE58F930FF300643CE500E5997480A | B199: 0E51CE58F930FF300643CE500E599748 | C199: 198 | D199: 0E51CE58F930FF300643CE500E599748 | E199: =E198 -> 99 | F199: =RIGHT(VLOOKUP(E199,$C$2:$D$1745,2),16) -> FC3F0000F8B51B4D | G199: 252 | H199: 63 | I199: 0 | J199: 0 | K199: 248 | L199: 181 | M199: 27 | N199: 77
A200: :100C6000064080200E51CE5840000643CE500E590B | B200: 064080200E51CE5840000643CE500E59 | C200: 199 | D200: 064080200E51CE5840000643CE500E59 | E200: =E199+1 -> 100 | F200: =LEFT(VLOOKUP(E200,$C$2:$D$1745,2),16) -> 83005A59EB185C6A | G200: 131 | H200: 0 | I200: 90 | J200: 89 | K200: 235 | L200: 24 | M200: 92 | N200: 106
... 3289 more rows
